Workbook

Sheet Main Sheet
B2: ESFA school census post-16 funding tool 2022 to 2023
B3: Version 1.0 - June 2022
B14: Click here to see a high level data map showing you the key datasets used in 16 to 19 allocations and where they are used in the formula
B15: If you are unsure about the meaning of field codes in the interactive examples please refer to the code table sheet for detailed descriptions.
B16: To ensure the examples work correctly please enable macros when opening this tool.
B18: Core programme funding
C21: Student numbers | D21: x | E21: National funding rate per student | F21: x | G21: Retention factor | H21: x | I21: Programme cost weighting | J21: + | K21: L3 maths and English payment | L21: + | M21: Disadvantage | N21: + | O21: Large programme uplift | Q21: x | R21: Area cost
C25: Condition of funding (CoF) | D25: ______ | E25: Interactive Flowchart (CoF) | F25: ______ | G25: Static Flowchart (CoF)
B27: Additional formula funding elements | J27: Additional guidance on student programmes
C30: High value courses premium (HVCP) | K30: T Levels
C32: Useful links
C34: Guidance
C35: ESFA funding guidance | G35: www.gov.uk/16-to-19-education-funding-guidance
C36: School census guidance | G36: www.gov.uk/school-census
C37: Condition of funding detailed guidance | G37: www.gov.uk/16-to-19-funding-maths-and-english-condition-of-funding
C38: Large programme uplift | G38: www.gov.uk/guidance/16-to-19-funding-large-programme-uplift
C39: High value courses premium (HVCP) guidance | G39: www.gov.uk/guidance/16-to-19-funding-high-value-courses-premium
C40: L3 maths and English payment | G40: www.gov.uk/guidance/16-to-19-funding-level-3-programme-maths-and-english-payment
C41: How T Levels are funded | G41: www.gov.uk/guidance/how-t-levels-are-funded
C43: Reference data and systems
C44: Find a learning aim (FALA) | G44: findalearningaimbeta.fasst.org.uk/
C45: QAN web services | G45: collectdata.education.gov.uk/qwsweb/(S(glt55r551hufouidbqf0xgno))/Main.aspx
C46: Qualifications approved for funding | G46: www.qualifications.education.gov.uk/
C47: Postcode uplift factors | G47: https://www.gov.uk/government/publications/uplift-factors-and-postcode-files

Sheet Census data fields
B2: School census data fields used for funding
B4: School characteristics module | E4: Pupil status module
B5: N00216 | C5: LA number | E5: N00017 | F5: Pupil enrolment status
B6: N00279 | C6: Departmental establishment number | E6: N00182 | F6: Pupil’s actual national curriculum year group
E7: N00183 | F7: Pupil’s actual national curriculum year group on leaving
B8: Pupil identifiers module
B9: N00001 | C9: Unique pupil number (UPN) | E9: SEN module
B10: N00011 | C10: Unique learner number (ULN) | E10: N00209 | F10: Pupil SEN provision
B11: N00002 | C11: Pupil’s former UPN
B12: N00006 | C12: Pupil date of birth | E12: Home information module
E13: N00037 | F13: Postcode
B14: Pupil characteristics module
B15: N00155 | C15: Top up funding indicator | E15: Post-16 learning aims module
B16: N00163 | C16: Planned learning hours | E16: N00194 | F16: Qualification number
B17: N00164 | C17: Planned employability, enrichment and pastoral hours | E17: N00058 | F17: Learning aim start date
B18: N00654 | C18: Planned learning hours previous year | E18: N00059 | F18: Learning aim planned end date
B19: N00655 | C19: Planned employability, enrichment and pastoral hours previous year | E19: N00060 | F19: Learning aim actual end date
B20: N00680 | C20: T Level planned learning hours | E20: N00141 | F20: Learning aim status
B21: N00681 | C21: T Level planned employability, enrichment and pastoral hours | E21: N00674 | F21: Programme type
B22: N00169 | C22: Maths GCSE highest prior attainment | E22: N00154 | F22: Core aim
B23: N00170 | C23: Maths GCSE prior attainment year 11 | E23: N00167 | F23: Learning aim withdrawal reason
B24: N00171 | C24: English GCSE highest prior attainment | E24: N00184 | F24: Traineeship
B25: N00172 | C25: English GCSE prior attainment year 11 | E25: N00675 | F25: Work placement start date
B26: N00175 | C26: Maths GCSE funding exemption | E26: N00676 | F26: Work placement end date
B27: N00176 | C27: English GCSE funding exemption | E27: N00763 | F27: Learner Funding and Monitoring (FAM) type
B28: N00656 | C28: Maths GCSE highest prior attainment previous year | E28: N00764 | F28: Learner Funding and Monitoring (FAM) code
B29: N00657 | C29: English GCSE highest prior attainment previous year

Sheet Data Usage
E1: Back to main sheet
E2: Move on to the detailed data sections
E3: Data usage map
E4: Please use the buttons below to see where and how each dataset is used in the 16 to 19 funding formula. More details can be found in detailed data sections which you can select individually from the main sheet or jump to using the link above.
E13: Student numbers | F13: x | G13: National funding rate per student | H13: x | I13: Retention factor | J13: x | K13: Programme cost weighting | L13: + | M13: Level 3 maths and English payment | N13: + | O13: Disadvantage | P13: + | Q13: Large programme uplift | S13: x | T13: Area cost
I15: Additional formula funding elements
E17: Condition of funding | I17: High value courses premium (HVCP)
E20: Census (previous year) data is used to:
E21: Determine full time/part time funding bands and the national funding rate per student
E22: Determine the retention factor using learning aim completion status
E23: Determine the programme cost weighting factor using the core aim sector subject area
E24: Determine the disadvantage block 1 factor using student home postcode
E25: Determine student compliance with the condition of funding on the provision of GCSE maths and English
E26: Determine maths and English study in level 3 programmes
E27: Determine high value courses premium
E29: Dataset Principles
E30: The autumn census is a single data return combining the end of one academic year and the start of the next. The ESFA must split this combined data into two separate years (previous and current). This split data is then used to drive all calculations for the relevant academic year.
E34: Census (current year) data is used to:
E35: Determine the lagged student number
E37: Dataset Principles
E38: The autumn census is a single data return combining the end of one academic year and the start of the next. The ESFA must split this combined data into two separate years (previous and current). This split data is then used to drive all calculations for the relevant academic year.
E42: LARS data is used to:
E43: Determine the programme cost weighting factor matching the sector subject area to the core aim QN
E44: Determine the occupational specialism (using the ZTLOS code) for T Levels, which sets the national funding rate and the programme cost weighting
E45: Identify learning aim types that meet the large programme uplift criteria
E46: Identify learning aims that are valid maths and English qualifications counting toward the condition of funding
E48: Dataset Principles
E49: LARS data is publicly available from the Find a Learning Aims webpage (linked from the main sheet) – it is the key source of qualification validity data used by the ESFA. LARS contains all key qualification information also collected in QWS as well as highlighting maths and English qualifications that are valid for the condition of funding (which QWS does not record).
E54: Postcode data is used to:
E55: Determine the disadvantage block 1 factor matching the disadvantage uplift to the student home postcode
E56: Determine eligibility for discretionary bursary funding, according to sudents' home postcode and the level of deprivation in the Index of Multiple Deprivation (IMD)
E57: Determine the area uplift matched to the institution's postcode
E59: Dataset Principles
E60: The postcode data used by the ESFA is sourced from ONS and enriched with disadvantage and area cost factors. The postcode data we use from 2016/17 allocations onward uses the Indices of Multiple Deprivation (IMD) and the 2011 census super output area definitions to calculate disadvantage uplifts.
E64: YPMAD data is used to:
E65: Determine large programme funding using the last full year’s attainment data (from the Young Peoples Matched Administrative Dataset, YPMAD)

Sheet Code Tables
B2: Back to main sheet
B4: Back to main sheet
B5: Code tables
B6: The tables below set out the allowable codes for each field and the value of each code.
B7: Please use these tables as a reference point for understanding the data set out in each interactive example.
B10: Pupil enrolment status | E10: Sector subject area (SSA) tier 2
B11: Code | C11: Description | E11: Code | F11: Description | G11: PCW banding | H11: PCW factor
B12: C | C12: Current (single registration at this school) | E12: 1 | F12: Health, public services and care
B13: G | C13: Guest (pupil not registered at this school but attending some lessons or sessions) | E13: 1.1 | F13: Medicine and dentistry | G13: Low | H13: 1.1
B14: M | C14: Current main (dual registration) | E14: 1.2 | F14: Nursing and subjects and vocations allied to medicine | G14: Low | H14: 1.1
B15: S | C15: Current subsidiary (dual registration) | E15: 1.3 | F15: Health and social care | G15: Base | H15: 1
B16: F | C16: FE college* | E16: 1.4 | F16: Public services | G16: Base | H16: 1
B17: O | C17: Other provider* | E17: 1.5 | F17: Child development and wellbeing | G17: Base | H17: 1
B18: *PRUs only | E18: 2 | F18: Science and mathematics
E19: 2.1 | F19: Science | G19: Base/low [1] | H19: 1/1.1
E20: 2.2 | F20: Mathematics and statistics | G20: Base | H20: 1
B21: Aim status | E21: 3 | F21: Agriculture, horticulture, and animal care
B22: Code | C22: Description | E22: 3.1 | F22: Agriculture | G22: High/specialist [2] | H22: 1.3/1.75
B23: 1 | C23: The learner is continuing or intending to continue the learning activities leading to the learning aim | E23: 3.2 | F23: Horticulture and forestry | G23: High/specialist [2] | H23: 1.3/1.75
B24: 2 | C24: The learner has completed the learning activities leading to the learning aim | E24: 3.3 | F24: Animal care and veterinary science | G24: High/specialist [2] | H24: 1.3/1.75
B25: 3 | C25: The learner has withdrawn from the learning activities leading to the learning aim | E25: 3.4 | F25: Environmental conservation | G25: High/specialist [2] | H25: 1.3/1.75
B26: 4 | C26: The learner has transferred to a new learning aim. That is, the learner has withdrawn from this learning aim and as a direct result has at the same time started studying for another learning aim within the same provider | E26: 4 | F26: Engineering and manufacturing technologies
E27: 4.1 | F27: Engineering | G27: Very high | H27: 1.4
E28: 4.2 | F28: Manufacturing technologies | G28: Very high | H28: 1.4
B29: Maths GCSE prior attainment year 11 | E29: 4.3 | F29: Transportation operations and maintenance | G29: Very high | H29: 1.4
B30: Code | C30: Description | E30: 5 | F30: Construction, planning and the built environment
B31: 1 | C31: Learner has GCSE maths (at grade A*-C / 9 - 4) – achieved by end of year 11 | E31: 5.1 | F31: Architecture | G31: Medium | H31: 1.2
B32: 2 | C32: Learner has GCSE maths (at grade A*-C / 9 - 4) – achieved since the end of year 11 | E32: 5.2 | F32: Building and construction | G32: Very high | H32: 1.4
B33: 3 | C33: Learner does not have GCSE maths (at grade A*-C / 9 - 4) | E33: 5.3 | F33: Urban, rural and regional planning | G33: Medium | H33: 1.2
E34: 6 | F34: Information and communication technology
E35: 6.1 | F35: ICT practitioners | G35: Medium | H35: 1.2
B36: English GCSE prior attainment year 11 | E36: 6.2 | F36: ICT for users | G36: Base | H36: 1
B37: Code | C37: Description | E37: 7 | F37: Retail and commercial enterprise
B38: 1 | C38: Learner has GCSE English (at grade A*-C / 9 - 4) – achieved by end of year 11 | E38: 7.1 | F38: Retailing and wholesaling | G38: Medium | H38: 1.2
B39: 2 | C39: Learner has GCSE English (at grade A*-C / 9 - 4) – achieved since the end of year 11 | E39: 7.2 | F39: Warehousing and distribution | G39: Base | H39: 1
B40: 3 | C40: Learner does not have GCSE English (at grade A*-C / 9 - 4) | E40: 7.3 | F40: Service enterprises | G40: Medium | H40: 1.2
E41: 7.4 | F41: Hospitality and catering | G41: High | H41: 1.3
E42: 8 | F42: Leisure, travel and tourism
B43: Maths GCSE funding exemption | E43: 8.1 | F43: Sport, leisure and recreation | G43: Base | H43: 1
B44: Code | C44: Description | E44: 8.2 | F44: Travel and tourism | G44: Base | H44: 1
B45: L | C45: A learning disability prevents the pupil from studying for the qualification(s) | E45: 9 | F45: Arts, media and publishing
B46: O | C46: A recognised overseas equivalent qualification is held by the pupil | E46: 9.1 | F46: Performing arts | G46: Medium | H46: 1.2
B47: U | C47: Learner has met the GCSE condition of funding as they hold an approved equivalent UK qualification | E47: 9.2 | F47: Crafts, creative arts and design | G47: Medium | H47: 1.2
B48: N | C48: No exemption | E48: 9.3 | F48: Media and communication | G48: Base | H48: 1
B49: F | C49: Learner holds a pass grade for functional skills level 2 | E49: 9.4 | F49: Publishing and information services | G49: Base | H49: 1
E50: 10 | F50: History, philosophy and theology
E51: 10.1 | F51: History | G51: Base | H51: 1
B52: English GCSE funding exemption | E52: 10.2 | F52: Archaeology and archaeological sciences | G52: Base | H52: 1
B53: Code | C53: Description | E53: 10.3 | F53: Philosophy | G53: Base | H53: 1
B54: L | C54: A learning disability prevents the pupil from studying for the qualification(s) | E54: 10.4 | F54: Theology and religious studies | G54: Base | H54: 1
B55: O | C55: A recognised overseas equivalent qualification is held by the pupil | E55: 11 | F55: Social Sciences
B56: U | C56: Learner has met the GCSE condition of funding as they hold an approved equivalent UK qualification | E56: 11.1 | F56: Geography | G56: Base | H56: 1
B57: N | C57: No exemption | E57: 11.2 | F57: Sociology and social policy | G57: Base | H57: 1
B58: F | C58: Learner holds a pass grade for functional skills level 2 | E58: 11.3 | F58: Politics | G58: Base | H58: 1
E59: 11.4 | F59: Economics | G59: Base | H59: 1
E60: 11.5 | F60: Anthropology | G60: Base | H60: 1
B61: Maths GCSE highest prior attainment | E61: 12 | F61: Languages, literature and culture
B62: Code | C62: Description | E62: 12.1 | F62: Languages, literature and culture of the British Isles | G62: Base | H62: 1
B63: A* | C63: Grade A star | E63: 12.2 | F63: Other languages, literature and culture | G63: Base | H63: 1
B64: A | C64: Grade A | E64: 12.3 | F64: Linguistics | G64: Base | H64: 1
B65: B | C65: Grade B | E65: 13 | F65: Education and training
B66: C | C66: Grade C | E66: 13.1 | F66: Teaching and lecturing | G66: Medium | H66: 1.2
B67: D | C67: Grade D | E67: 13.2 | F67: Direct learning support | G67: Medium | H67: 1.2
B68: E | C68: Grade E | E68: 14 | F68: Preparation for life and work
B69: F | C69: Grade F | E69: 14.1 | F69: Foundations for learning and life | G69: Base | H69: 1
B70: G | C70: Grade G | E70: 14.2 | F70: Preparation for work | G70: Base | H70: 1
B71: U | C71: Grade U | E71: 15 | F71: Business, administration and law
B72: 9 | C72: Grade 9 | E72: 15.1 | F72: Accounting and finance | G72: Base | H72: 1
B73: 8 | C73: Grade 8 | E73: 15.2 | F73: Administration | G73: Base | H73: 1
B74: 7 | C74: Grade 7 | E74: 15.3 | F74: Business management | G74: Base | H74: 1
B75: 6 | C75: Grade 6 | E75: 15.4 | F75: Marketing and sales | G75: Base | H75: 1
B76: 5 | C76: Grade 5 | E76: 15.5 | F76: Law and legal services | G76: Base | H76: 1
B77: 4 | C77: Grade 4
B78: 3 | C78: Grade 3 | E78: [1] Academic programmes that include 2 or more science A levels receive the low (1.1) weighting.
B79: 2 | C79: Grade 2 | E79: [2] The high weighting (30%) will include non-specialist agriculture and animal care.
B80: 1 | C80: Grade 1 | E80: The specialist weighting (75%) will apply where there is a requirement to maintain specialist facilities such as a farm or equine stables.
B81: NR | C81: Not required
E82: Large Programme Uplift
E83: Study Programme Criteria | G83: Uplift on
B84: English GCSE highest prior attainment | G84: National Rate
B85: Code | C85: Description | E85: 4 full linear A Levels achieved at grade B or above | G85: 0.1
B86: A* | C86: Grade A star | E86: 5 full linear A Levels achieved at grade B or above | G86: 0.2
B87: A | C87: Grade A | E87: Full level 3 International Baccalaureate Diploma achieved at 28 points | G87: 0.2
B88: B | C88: Grade B | E88: or above
B89: C | C89: Grade C | E89: Large TechBacc programme equivalent to 4 A levels where all | G89: 0.1
B90: D | C90: Grade D | E90: qualifications are passed
B91: E | C91: Grade E | E91: Large TechBacc programme equivalent to full level 3 International | G91: 0.2
B92: F | C92: Grade F | E92: Baccalaureate where all qualifications are passed
B93: G | C93: Grade G
B94: U | C94: Grade U
B95: 9 | C95: Grade 9 | E95: Programme type
B96: 8 | C96: Grade 8 | E96: Code | F96: Description
B97: 7 | C97: Grade 7 | E97: 01 | F97: Study programme
B98: 6 | C98: Grade 6 | E98: 30 | F98: T Level transition programme
B99: 5 | C99: Grade 5 | E99: 31 | F99: T Level
B100: 4 | C100: Grade 4
B101: 3 | C101: Grade 3
B102: 2 | C102: Grade 2 | E102: Learner Funding and Monitoring (FAM) Type
B103: 1 | C103: Grade 1 | E103: Code | F103: Description
B104: NR | C104: Not required | E104: NLM | F104: National Learner Monitoring: To identify any additional monitoring characteristics for the pupil
E107: Learner Funding and Monitoring (FAM) Code
E108: Code | F108: Description
E109: 21 | F109: Learner in receipt of 16 to 19 tuition fund
E110: 22 | F110: Learner repeating up to one full final year of 16 to 19 funded provision

Sheet Student numbers
B2: Return to main page
B3: Move on to national funding rate per student
B5: Student Numbers
B8: Data used
B9: Census data | C9: How | D9: Why | E9: Other considerations
B10: Pupil's actual national curriculum year group | C10: Students in national curriculum years 12, 13 and 14 are selected, students in national curriculum years below 12 are excluded from all calculations. | D10: ESFA 16 to 19 funding supports post-16 pupils who have progressed beyond the compulsory national curriculum. Students recorded in national curriculum year 11 and below should be those still following the national curriculum and funded through the pre-16 funding regime. There can be exceptional circumstances where students under the age of 16 are studying the majority of their programme at level 3. In such cases the national curriculum year should be 12. | E10: All of these data principles are similarly applied to the records used to determine funding factors.
B11: Pupil enrolment status | C11: Only students with main or current main registration are selected. | D11: Guest pupils do not generate funding for the institution they are a guest in. Only the institution holding main registration for the student receives funding for the student. Therefore guest pupils are excluded. This means all learning aims for a student should be recorded by the institution holding main registration.
B12: Pupil on roll/off roll status | C12: Only students who are on roll are counted for the current funding year. | D12: Students who are off roll in the current year but who were on roll in the previous year may be included in the calculation of the relevant funding factors if they meet the other criteria (national curriculum year group and enrolment status).
B13: Learning aim start date | C13: The earliest start date, latest planned end date and latest actual end date across all learning aims in a student's study programme are used to determine whether or not the student qualifies for funding. Students who do not qualify for funding are excluded from all calculations. | D13: To qualify for funding a student must remain on their study programme for a minimum period based on the planned length of the programme or the number of planned hours in the academic year.
B14: Learning aim planned end date
B15: Learning aim actual end date
B17: Common errors
B18: Recording error | C18: Result | D18: Explanation
B19: Student incorrectly recorded as a guest. | C19: The student will be excluded from all calculations. | D19: Guest pupils do not generate funding for the institution they are a guest in. Only the institution holding main registration for the student receives funding for the student. Therefore guest pupils are excluded.
B20: Learning aim dates incorrectly recorded | C20: The student may not qualify for funding, in which case the student will be excluded from all calculations. | D20: Each student must qualify for funding by passing a funding qualifying period. The start date, planned end date and actual end date are used to calculate not only the qualifying period but also whether or not the student has passed the period and qualified for funding. Therefore incorrectly recorded dates can impact whether or not a student qualifies.
C21: The student may not be included in the census data for a year they were in learning which will affect either student numbers or funding factors and funding band proportions. | D21: The start date, planned end date and actual end date are used to determine which years a student was or is in learning. These dates are the key data used to split the combined autumn census return into two files covering the end of one academic year and the start of the next. If the dates incorrectly show learning undertaken in one year only, this will exclude the student from either funding factors (if dates are only in the latter year) or student numbers (if dates are only in the former year).

Sheet National rate
B2: Return to main page
B3: Move on to retention
B5: National funding rate per student (full-time/part-time bands)
B8: Calculated using
B9: Census data | C9: How | D9: Why | E9: Other considerations
B10: Planned hours and national funding rates | C10: The sum of planned learning hours and planned employability, enrichment and pastoral hours gives a total planned hours figure for the academic year for each student. This total planned hours figure determines the funding band, and therefore, national funding rate the student attracts. | E10: The national funding rates have increased, following the announcement of the three-year spending review in autumn 2021. The increased funding rates are associated with higher hours thresholds for the funding bands. The planned hours set out in the table of national funding rates (in the Funding rates and formula guidance on GOV.UK) are what ESFA expects providers to plan for students’ study programmes delivered in 2022 to 2023. However, the funding allocations for 2022 to 2023 used data from 2020 to 2021, when the expected delivery hours were lower. therefore the allocations for that year used the previous, lower, funding band thresholds. For the purposes of funding allocations, students’ funding bands are determined by the year in which they were studying.
B11: Planned learning hours (qualification hours) | C11: The sum of planned learning hours and planned employability, enrichment and pastoral hours gives a total planned hours figure for the academic year for each student. This total planned hours figure determines the funding band, and therefore, national funding rate the student attracts. | D11: The funding methodology enables the funding of appropriate non-qualification based activity alongside qualification activity and each are recorded in separate fields although taken as a whole when calculating funding. | E11: Planned hours for study programmes are annual, reflecting the total planned hours for the student in an academic year. There are two sets of planned hours fields: one for the current year and one for the previous year. For the 2022 autumn census, the fields suffixed with 'previous year' are the hours for post-16 pupils who were on roll and in year 12 or above in 2021 to 2022, and the other planned hours fields are for students who are on roll and in year 12 or above in the current year, 2022 to 2023. Planned hours should not reflect weekly hours. Planned hours data must not be changed to reflect actual hours. T Level hours cover the whole of the programme, which we expect to typically be 2 years. T Level hours for qualification and non-qualification activity are recorded in separate fields to study programme hours.
B12: Planned enrichment, employability and pastoral hours (non-qualification hours)
B13: Top-up indicator | C13: The top-up indicator is used to identify those students deemed 'high needs', that is, those students who are in receipt of element 3 top-up funding from a local authority or, in the case of a PRU, a local authority or another school. The date of birth is used to calculate the student's age on 31st August of the relevant academic year. Both sets of data are then used to ensure students receive the correct national funding rate based on their planned hours and age. | D13: Funding for students aged 18 or over who are not designated 'high needs' is paid at a maximum national funding rate of £3,757 (for those students whose planned hours are 485 or above).
B14: Date of birth
B15: Unique pupil number (UPN) and former UPN | C15: For some elements of the funding formula, we use the previous year's data. In the majority of cases, we do this using the unique learner number (ULN), and in its absence, the unique pupil number (UPN). | D15: Using previous year's data allows us to look at a whole year's data, rather than a partial dataset taken midway through the year. When students change their UPN between census returns, institutions must return the former UPN as well as the current UPN so that we can accurately track them over the two years. The elements of the funding formula that use data with a two-year lag are: funding rate band (planned hours), programme cost weighting, disadvantage blocks 1 and 2.
B17: Common errors
B18: Recording error | C18: Result | D18: Explanation | E18: Other considerations
B19: No planned hours are recorded for the student | C19: This will impact on the funding band proportions used in an institutions allocation and result in no funding for the student. | D19: If no planned hours are recorded the student's funding band will be set to part time band 1 (0 to 299 hours) with an FTE value of 0. As the FTE value is a multiplier for all other funding elements the student will generate no funding through the formula.
B20: Only planned learning hours recorded | C20: This is likely to result in the student attracting a lower national funding rate than they should, impacting funding band proportions, potentially, resulting in a reduced funding allocation. | D20: Qualification hours alone are unlikely to put a student in the full time funding band. Non-qualification hours should be recorded where this activity is planned for the student and in many cases will complete a student's study programme often putting them into the full time band or a higher part time band. | E20: Institutions should ensure all eligible activities are reflected in the planned hours returned for each student. Non-qualification hours can include a variety of study programme related activities such as: 1) informal certificates such as Duke of Edinburgh Award 2) work related activity such as preparing CVs and practising interview skills 3) activities that offer enrichment to the student such as employer or university visits Please refer to the ESFA Funding regulations guidance on planned hours for further information on how planned hours can be constructed and the types of activity that can be included.
B21: Weekly planned hours recorded | D21: Planned hours should reflect all of the hours planned to be delivered to a student in the academic year in question. If the average hours per week are recorded this will be the value taken as the annual hours and will put the student in the part time band 1 (0 to 299 hours).
B22: T Level hours are recorded in the study programme hours fields | D22: If hours are recorded in the study programme hours fields, rather than the T Level hours fields, the T Level hours default to 0. This means that the funding band will be band 1, the lowest band.
B23: Top-up indicator not completed for students in receipt of element 3 top-up funding | C23: This will reduce the number of high needs students identified for place funding and will result in a maximum funding rate of £3,757 for affected students aged 18 or over. | D23: From 2015 to 2016, ESFA-funded high needs students will be identified solely by the completion of the top-up indicator. Therefore high needs students not identified as such will not be accounted for in the high needs place funding process. Furthermore the only 18+ students eligible for receiving funding at the full time national funding rate are those with high needs. If they are not identified as high needs funding will be capped at the top part time funding rate of £3,757.
B24: No former UPN recorded | C24: The funding calculation may not match in the previous year's data. | D24: If we cannot match the student's former UPN to a UPN recorded in the previous year's data, then we will not be able to use the right data from the previous year. The elements of the funding formula that would use the previous year's data will not operate correctly, and the result of the funding calculation is likely to be distorted, resulting in incorrect funding. For example, if we cannot match in planned hours from the previous year, the student will have 0 planned hours, and the funding calculation will not output funding for them. | E24: 29/04/2019 - Suggest this whole row is now deleted. The matching issue is now internal for SQL code only.

Sheet Retention
B2: Return to main page
B3: Move on to programme cost weighting
B5: Retention
B8: Calculated using
B9: Census data | C9: How | D9: Why
B10: Qualification number (QN) | C10: The QN is used to ascertain information about the qualification from the Learning Aims Reference Service (LARS). For retention calculations, the aim type field (see below) from LARS is used to determine the type of qualification to ascertain whether it is vocational or academic. | D10: For academic programmes retention is calculated from all academic aims within the programme and for vocational programmes it is based on the core aim recorded for the student. Therefore the ESFA needs to know which aims are academic and which are vocational.
B11: Core aim | C11: A core aim is recorded for vocational programmes, and is used to determine the retention status of the student. | D11: For vocational programmes the core aim reflects the principal or core activity for the student. As such this activity determines the status of the programme as it relates to key funding elements including retention.
B12: Learning aim status | C12: Learning aims recorded as continuing (1) or completed (2) are classed as retained, whereas those set to withdrawn (3) or transferred (4) are not. | D12: Retention is a measure of students completing the core elements of their programme. If they have withdrawn or transferred from these elements they are not complete.
B14: Reference Data | C14: How | D14: Why
B15: Aim type | C15: The aim type field is held in LARS and is matched into census data using the QN. This field indicates the type of the qualification (for example A level, GCSE, diploma) which, in turn, is used to determine whether or not it is academic or vocational. | D15: The retention calculation identifies aims as academic or vocational so only appropriate aims are selected according to the students main programme type - as described above.
B17: Common errors
B18: Recording error | C18: Result | D18: Explanation
B19: Incorrect or invalid QN is recorded | C19: May result in a student being incorrectly recorded as not retained. | D19: If an invalid QN is returned, we cannot match in reference data from LARS. Therefore the aim type will be unavailable and the learning aim will default to vocational. If the student's programme is academic, vocational aims will be ignored in the retention calculation. An incorrect QN may result in incorrect LARS data being matched to the learning aim, again resulting in incorrectly excluded aims in the retention calculation.
B20: Core aim is returned for an academic student or not returned for a vocational student. | C20: May result in a student being incorrectly recorded as not retained. | D20: The core aim is used to determine whether or not a student's programme is academic or vocational (those with a core aim are vocational and those without are academic). If a student is deemed academic because a core aim has not been recorded the retention calculation will exclude all vocational aims. If that student has no academic aims the retention status will be set to not retained by default. The same is true of an academic student who is deemed vocational because a core aim has incorrectly been recorded.
B21: Learning aim status is incorrect or missing | C21: May result in a student being incorrectly recorded as not retained. | D21: Aims with incorrect statuses could reflect a transferred or withdrawn (not retained) aim where it is actually continuing or completed (retained). Those aims with no learning aim status will default to not retained.

Sheet PCW
B2: Return to main page
B3: Move on to disadvantage
B5: Programme cost weighting
B8: Calculated using
B9: Census data | C9: How | D9: Why | E9: Other considerations
B10: Qualification number (QN) | C10: The QN is used to reference the sector subject area for the qualification from the Learning Aims Reference Service (LARS). This is used to determine the appropriate programme cost weighting for the core aim in each vocational study programme. | D10: For vocational study programmes the programme cost weighting attracted is determined by the sector subject area of the core aim. The weighting is applied to the student's whole study programme. | E10: Only vocational study programmes and T Levels can carry a weighting above 1. All academic programmes attract the base weight of 1, apart from programmes that include at least 2 science A levels. Not all vocational programmes carry a weighting above 1; many sector subject areas are base weighted. A list of weightings against sector subject areas can be found in the ESFA 'Funding rates and formula' guidance (please see the useful links section on the main page of this tool) and in the code table section of this tool.
B11: Qualification number (QN) - T Level occupational specialism aim | C11: We use the T Level occupational specialism aims (starting ZTLOS) to determine programme weighting. Prior to 2021 to 2022, T Levels occupational specialisms were determined by the T Level technical qualification's discount code. | D11: Within each T Level, occupational specialism can attract a different weighting.
B12: Core aim indicator | C12: The core aim is used to determine whether or not a student's programme is academic or vocational. If it is vocational the core aim will be used to reference the appropriate programme cost weighting. | D12: For vocational programmes the core aim should reflect the principal or core activity for the student. As such this activity determines the status of the programme as it relates to key funding elements including programme cost weighting.
B13: T Level transition programme class code | C13: The core aim for a T Level transition programme must be the class code for the subject (the codes all start ZTPR). | D13: The programme cost weighting is determined by the class code.
B15: Reference data | C15: How | D15: Why
B16: Sector subject area tier 2 (SSA T2) | C16: We assign a programme cost weighting to each sector subject area (SSA) at tier 2 level. | D16: For vocational programmes, we use the core aim's SSA to weight the student's whole programme. We weight academic programmes with two or more A levels in the science SSA at 1.1. Other academic programmes to not receive a programme cost weighting uplift.
B18: Common errors
B19: Recording error | C19: Result | D19: Explanation
B20: No core aim recorded | C20: If no core aim is recorded for a vocational programme the base weighting of 1 will applied to the student's whole programme. | D20: Vocational study programmes are identified by the presence of a core aim. If no core aim is present the programme will be assumed to be academic and, therefore, not attract a weighting even if the aims in the programme fall under sector subject areas that do attract a weighting.
B21: Invalid qualification number (QN) | C21: No programme cost weighting will be attracted. | D21: An invalid QN will mean the aim cannot be matched to LARS to determine the sector subject area, therefore, no weighting will be attracted.
B22: Missing or invalid occupational specialism (ZTLOS) qualification number (QN) | C22: The programme cost weighting will be wrong. | D22: The occupational specialism code determines the programme weighting.
B23: T Level transition programme class code not recorded, or is not recorded as the core aim | C23: The base weighting of 1 will applied to the student's whole programme. | D23: The transition programme class code determines the programme cost weighting. Without the code, or if it is not recorded as the core aim, the default weighting of 1 will apply.

Sheet Disadvantage
B2: Return to main page
B3: Move on to large programme uplift
B5: Disadvantage
B8: Calculated using
B9: Census data | C9: How | D9: Why | E9: Other considerations
B10: Postcode | C10: Each student's home postcode is used to reference an uplift value for that area in a postcode uplift file (see useful links on the main page). | D10: Block 1 disadvantage funding is attracted by students living in the 27% most deprived super output areas (SOAs) of the country. This information (sourced from the Indices of Multiple Deprivation, or IMD) is stored in reference data matching postcodes to SOAs and disadvantage uplifts to each SOA.
B11: Maths GCSE prior attainment year 11 | C11: Students recorded in these fields as not having achieved a GCSE grade 9 to 4, A* to C by the end of national curriculum year 11 in either or both of these subjects will attract disadvantage block 2 funding. | D11: Block 2 disadvantage funding accounts for the additional costs incurred for teaching students who have low prior attainment, as indicated by not achieving English and/or maths GCSEs at grade 4, C or above by the end of year 11 (typically age 16). | E11: This data is not to be confused with the highest prior attainment grade that is recorded in the census to drive the condition of funding on maths and English.
B12: English GCSE prior attainment year 11
B14: Reference data | C14: How | D14: Why | E14: Other considerations
B15: Postcode factors | C15: In this data set disadvantage uplifts are recorded against all UK residential postcodes. The student's home postcode is matched into this reference data to ascertain whether or not the student lives in an area that attracts a disadvantage uplift. | D15: Block 1 disadvantage funding is attracted by students living in the 27% most deprived SOAs of the country. This information (sourced from the Indices of Multiple Deprivation, or IMD) is stored in reference data matching postcodes to SOAs and disadvantage uplifts to each SOA.
B17: Common errors
B18: Recording error | C18: Result | D18: Explanation | E18: Other considerations
B19: Missing or incorrect postcode data | C19: An incorrect disadvantage uplift will be attracted by the student - this is likely to lead to no uplift being applied for a student who should attract one. | D19: If a postcode is missing or not valid a match will not be found in the postcode uplift reference data. Therefore, the disadvantage uplift value will default to 1 (no uplift).
B20: Missing or incorrect prior attainment data | C20: An incorrect block 2 instances per student figure will be applied to affected students resulting in an incorrect calculation of block 2 disadvantage funding. | D20: Block 2 disadvantage funding is calculated as the number of instances per student (2 for students without maths and English at the end of year 11, 1 for students without maths or English at the end of year 11 and 0 for those with both at the end of year 11). If the maths and English prior attainment by end of year 11 fields are incorrectly completed the instances per student and overall block 2 funding will be incorrect.

Sheet Large programme uplift
B2: Return to main page
B3: Move on to area cost
B5: Large programme uplift
B7: Calculated using
B8: Census data | C8: How | D8: Why | E8: Things to consider
B9: Census data is not used to calculate the large programme uplift
B11: Reference data | C11: How | D11: Why | E11: Things to consider
B12: Large programme calculations are taken from the Young person's matched administrative dataset (YPMAD). This data is based on exam results from awarding organisations. | C12: From YPMAD data we calculate how many students studying with your institution in the relevant year hold the requisite exam grades for valid programmes. This number is then transferred directly to your allocation statement where the 10% and 20% large programme rates are applied to calculate a final large programme uplift value. | D12: The large programme uplift is driven by minimum attainment levels achieved for qualifications making up a substantial programme. Attainment data is no longer collected in the school census, so we extract this information for your pupils from YPMAD data which is driven by the National Pupil Database (NPD). More information on the large programme uplift can be found in the large programme uplift guidance link on the main sheet. | E12: Large programme data operates on a 3 year lag, that is we use attainment from 3 years prior to the allocation year. For example, for 2022 to 2023 allocations we use 2019 to 2020 YPMAD data.
B14: Common errors
B15: Recording error | C15: Result | D15: Explanation
B16: Census data is not used to calculate the large programme uplift
B17: A2 or full linear A Levels incorrectly recorded. For example below grade B | C17: Student will fail to meet the criteria for A2 or full linear A Levels; Full level 3 International Baccalaureate Diploma; Large TechBacc programme. | D17: Student required to have achieved 4/5 A2 or full linear A Levels to qualify for large programme uplift.
B18: Full level 3 International Baccalaureate Diploma incorrectly recorded. For example being below the 28 points threshold, consisting of only IB certificates and no IB Diploma. | D18: Student required to have achieved 28 points or above for the full level 3 International Baccalaureate Diploma, to qualify for large programme uplift.
B19: Large TechBacc programme incorrectly recorded. For example a failure to correctly record all qualifications as passed. | D19: Student required to have achieved Large TechBacc programme either at equivalence to 4 A levels where all qualifications are passed or to have achieved equivalence to full level 3 International Baccalaureate where all qualifications are passed

Sheet Area cost
B2: Return to main page
B3: Move on to T Levels
B5: Area cost
B8: Calculated using
B9: Census data | C9: How | D9: Why | E9: Other considerations
B10: No census data is used to calculate area cost
B12: Reference data | C12: How | D12: Why | E12: Other considerations
B13: Postcode factors | C13: The institution's main address is used to determine whether or not learning is delivered primarily in an area that attracts an area cost weighting. | D13: Research has shown that there is a clearly marked difference in the relative costs of delivery between London and the south east, and the rest of England. | E13: Area cost weightings are shown in detail in the ESFA 'Funding rates and formula' funding guidance book which can be found on the links part of the main sheet.
B15: Common errors
B16: Recording error | C16: Result | D16: Explanation | E16: Other considerations
B17: Not applicable | C17: Not applicable | D17: Not applicable | E17: Not applicable

Sheet T Levels
B2: Return to main page
B3: Move on to level 3 maths and English
B5: T Levels
B8: Calculated using
B9: Census data | C9: How | D9: Why | E9: Other considerations
B10: Qualification number (QN) - occupational specialism (ZTLOS) | C10: We use the occupational specialism code to determine the programme's funding band. When T Level programmes are fully implemented into the lagged funding system, the programme cost weighting for a T level programme will also be determined by the occupational specialism. The 16 to 19 funding reports in COLLECT show the programme cost weighting that will be generated by the occupational specialism even though that value will not be used in funding allocations until T Levels are fully lagged. | D10: Within a T Level, occupational specialisms can be in different funding bands and can attract different programme weightings. | E10: Occupational specialism is identified by a separate qualification number (QN). The QNs for occupational specialisms begin with ZTLOS.
B11: Qualification number (QN) | C11: We use QNs and core aims to identify and correctly fund T Level programmes. | D11: The TQ must be the core aim in order for a programme to be identified as a T Level. | E11: More information on T Levels is on GOV.UK.
B12: Core aim
B13: T Level qualification and non-qualification hours | C13: In some cases, we use the values recorded in the T Level hours fields to determine the funding band. | D13: Students cannot be funded above the set funding band for a particular T Level, but if the hours are below the band minimum students will be funded in the band appropriate to the hours.
B14: Programme type | C14: Programme type identifies which type of programme each learning aim belongs to. | D14: When students do more than one kind of programme in a year, the programme type allows us to correctly identify which aims belong to which programme and fund the student correctly.
B16: Reference data | C16: How | D16: Why | E16: Other considerations
B17: LARS learning aim type | C17: LARS holds learning aim types, including a type to identify T Levels technical qualifications (TQs). | D17: The TQ must be the core aim in order for a programme to be identified as a T Level.
B19: Common errors
B20: Recording error | C20: Result | D20: Explanation
B21: The technical qualification (TQ) is not the core aim | C21: The programme is not identified as a T Level. The funding band and programme weighting are very likely to be incorrect. | D21: Only T Levels can be funded in band 6 and above. If another qualification has been identified as a core aim, the programme will be treated as a study programme and will be in band 5 or lower. We will also use the core aim determine the programme cost weighting.
B22: Missing or invalid occupational specialism (ZTLOS) qualification number (QN) | C22: The programme has an incorrect funding band and/or incorrect programme weighting. | D22: The occupational specialism determines what the funding band and programme weighting should be; if there is no occupational specialism aim for the student, the band and weighting are likely to be lower than the correct ones for the occupational specialism.
B23: T Level programme hours are below the band minimum | C23: The T Level student is funded at a lower level than they should be. | D23: Each T Level has a set funding band, with minimum hours. Students cannot be funded at a higher band, but if the T Level hours are below the band minimum the student is funded at that lower level. The T Level hours must be the hours for the whole programme, across all years that it will run for. If the hours only reflect the annual hours, the student will be funded at a lower level.
B24: T Level hours are recorded in the study programme hours fields | D24: If hours are recorded in the study programme hours fields, rather than the T Level hours fields, the T Level hours default to 0. This means that the funding band will be band 1, the lowest band. As this band works out the funding based on the recorded hours as a proportion of a full time programme, the funding will be nil (0 hours in the proportional gives £0 funding).
B25: The wrong programme type is assigned to the programme aim | C25: The most recent programme is not identified as a T Level. The funding band will be wrong. | D25: The programme type for the most recent programme aim determines the programme type for funding purposes. If the type is set as a study programme rather than a T Level, the funding cannot be in one of the higher T Level funding bands.

Sheet L3 maths and English
B2: Return to main page
B3: Move on to high value courses premium (HVCP)
B5: Level 3 maths and English payment
B8: Calculated using
B9: Census data | C9: How | D9: Why | E9: Other considerations
B10: English/maths GCSE highest prior attainment | C10: The prior attainment grade for English/maths determines whether a student is eligible for the L3 maths and English payment. | D10: A student who doesn't have maths and/or English GCSE grade 9 to 4 or equivalent at the start of their level 3 programme is likely to need additional support to achieve and therefore to incur additional cost. | E10: More information on the payment is on GOV.UK.
B11: Qualification numbers (QNs) | C11: We use QNs to determine if a student is on a substantial vocational programme | D11: To count as a substantial programme, a student must be on a programme meeting one of the following criterion: - have an academic programme that includes at least two A levels, - have a level 3 vocational qualification of 360 guided learning hours (GLH) as their latest core aim.
B12: Learning start date | C12: We use the earliest and latest start dates from a student's learning aims to determine the length of the programme. | D12: 1 year and 2 programmes are paid at different rates. We count a programme of 18 months or longer as a 2 year programme; all other programmes are counted as 1 year programmes.
B13: Learning end date
B15: Reference data | C15: How | D15: Why | E15: Other considerations
B16: LARS qualification number (QN) | C16: We compare student data with the census with LARS reference data to determine if a student is on a qualifying programme. | D16: Students on programmes that do not qualify are not eligible for the payment, even if they do not have maths and/or English GCSE at the required level.
B17: LARS GLH
B18: LARS level
B20: Common errors
B21: Recording error | C21: Result | D21: Explanation | E21: Other considerations
B22: Incorrect qualification numbers (QNs) recorded | C22: The student may not be eligible for the payment. | D22: If a student does not have the correct QNs recorded for their programme (for example, AS instead of A levels, or a vocational qualification that does not have 360 guided learning hours (GLH) or more, then their programme meet the eligibility critiria set out above.
B23: The core aim is not a substantial vocational qualification | C23: The student will not be eligible for the payment. | D23: Students on a vocational programme must have their core qualification as one that meets the programme eligibility criteria. Even if they have a level 3 vocational qualification of 360GLH or more in their programme, they are not eligible for the payment if they have another qualification as the core aim.
B24: Programme start and end dates incorrect, making the programme too short | C24: The student will not be eligible for the payment, or will be paid at a lower rate. | D24: A 2 year study programme is one that spans 18 months or more; therefore a programme could run over two academic/funding years but still be counted as a 1 year programme. All study programmes under 18 months are treated as one year programmes for the purposes of the payment.
B25: Prior attainment wrongly recorded | C25: The student will not be eligible for the payment. | D25: Students are eligible for the payment when they don't have maths and/or English GCSE grade 9 to 4 or equivalent at the start of their level 3 programme

Sheet High value courses premium
B2: Return to main page
B3: Move on to condition of funding
B5: High value courses premium (HVCP)
B8: Calculated using
B9: Census data | C9: How | D9: Why | E9: Other considerations
B10: QN | C10: Only A levels in certain subjects, or vocational level 3 qualifications larger than 360 guided learning hours (GLH) in certain sector subject areas (SSAs) qualify for the HVCP. | D10: HVCP is intended to help to develop a more productive economy, by supporting providers to increase the number of students studying substantial level 3 study programmes in selected subjects. The subjects have been selected using data on earnings outcomes and on their relevance to the UK Industrial Strategy. | E10: A list of qualifications is available on GOV.UK.
B11: Core aim | C11: The eligible qualification has to be the core aim in order for the student to earn the premium.
B13: Reference data | C13: How | D13: Why | E13: Other considerations
B14: LARS learning aim type | C14: The LARS reference data is used to create the list of qualifications that qualify for the HVCP.
B15: LARS guided learning hours
B16: LARS sector subject area (SSA)
B17: List of qualifications that qualify for the HVCP | C17: The core aim has to be on the list for a student to earn the premium.
B19: Common errors
B20: Recording error | C20: Result | D20: Explanation | E20: Other considerations
B21: Incorrect QN | C21: The student does not qualify for HVCP | D21: If a student's programme does not include a qualification that is on the list of those that qualify for HVCP, they will not qualify for the additional funding
D22: We will not count an incorrect QN that is not an A level in one of the specified subjects.
D23: An incorrect QN that is not a a substantial qualification (360GLH or more) will not qualify for HVCP.
B24: Incorrect core aim | D24: If a student does not have a core aim that correctly identifies their programme, they are will not qualify for HVCP, as the qualifications in their programme will not meet the criteria.

Sheet Condition of funding
B2: Return to main page
B4: Condition of funding on the provision of mathematics and English
B7: Calculated using
B8: Census data | C8: How | D8: Why | E8: Other considerations
B9: Planned learning hours (qualification hours) | C9: A student's planned hours are used in two elements of the condition of funding logic: 1) The condition of funding does not apply to students on a study programme of 150 planned hours or less. 2) All students on a study programme of 485 planned hours or above who hold a GCSE grade 3, D in maths and/or English are required to undertake an approved GCSE qualification (or approved level 3 qualification) in order to meet the condition of funding. Stepping stone qualifications will not meet the condition of funding for these students. | D9: All students starting a new study programme of 150 hours or more, aged 16 to 18, or aged 19 to 25 if they have an Education and Health Care Plan (EHCP), who do not hold a GCSE grade 9 to 4, A* to C qualification in maths and/or in English, are required to be studying these subjects as part of their study programme in each academic year. For students not studying an approved qualification, funding will be removed from future allocations at the national funding rate per student, for the relevant year. The approved qualifications are • GCSEs or a level 1/level 2 certificates (approved IGCSE) that count towards the English Baccalaureate (EBacc) measure, or • approved stepping stone qualifications. | E9: Students holding GCSE maths/English at grade 2/E and below, or who hold grade 3/D and are undertaking a study programme of less than 485 hours can undertake approved stepping stone qualifications in order to meet the condition of funding.
B10: Planned enrichment, employability and pastoral hours (non-qualification hours)
B11: Maths GCSE funding exemption | C11: There are two exemptions to the condition of funding: • students with learning difficulties and/or disabilities, who are assessed as not able to study either GCSE or stepping stone qualifications; • students with overseas qualifications that are established as equivalent to GCSE grade 4, C These fields are used to determine whether or not a student is exempt from the condition of funding for maths and/or English. UK equivalent qualifications are also recorded in these fields (these are qualifications that are not GCSEs but count as equivalencies for the purposes of the condition of funding, for example maths and English A levels). | E11: Students with a grade 2 or below in maths or English can study towards a pass in functional skills level 2 (legacy or reformed) or they can still study towards a GCSE grade 9 to 4, A* to C. Students with a pass grade in maths or English functional skills level 2 (legacy or reformed) should be recorded as follows: For English, record code F in the English GCSE funding exemption field OR For maths, record code F in the Maths GCSE funding exemption field
B12: English GCSE funding exemption
B13: Maths GCSE highest prior attainment | C13: These two fields are used to determine, for maths and for English, whether or not a student holds a GCSE qualification and, if so, at what grade. This information then determines whether or not a student must undertake an approved maths and/or English qualification to meet the condition of funding. | E13: Usually the fields for highest prior attainment are completed with the grade that the student holds at the start of the year. However, if a student is resitting a GCSE, and therefore does not have a learning aim record for the qualification that would result in them meeting the condition, then the prior attainment field must be updated in-year with the result of the resit. If the student does not achieve the required grade in the resit to meet the condition, they must enrol on a maths/English qualification as necessary.
B14: English GCSE highest prior attainment
B15: Qualification number (QN) | C15: The QN is used to match post-16 learning aims recorded against the student into LARS to determine whether or not they are undertaking approved maths and/or English qualifications.
B16: Learning aim start date | C16: The start date, planned end date and actual end date of valid maths and English learning aims in a student's study programme are used to determine whether or not the aims qualify and count towards meeting the condition of funding. Learning aims that are on the approved list of maths and English qualifications but do not meet the qualifying period do not count towards the condition of funding. The learning aim start date should also fall between the qualification's start date and the last date for new starts of the qualification in question (the effective from and last date for new starts can be found on the list of approved qualifications in LARS). | D16: A qualifying period is applied to valid maths and English aims to ensure that the student is fully engaged on this element of the programme to give them the best chance of attaining a grade 4, C or above at GCSE level. The check on the learning aim start date ensures that the student started the learning aim when it was still a live qualification according to the valid date range set by the awarding organisation.
B17: Learning aim planned end date
B18: Learning aim actual end date
B19: Traineeship Indicator | C19: Traineeships can be full or part time programmes. Students are required to meet the condition as full time or part time, according to the hours recorded for their programme. | D19: We have changed the permitted duration of traineeships: previously they were a maximum of 6 months, but now they can be 12 months. Therefore the requirement to meet the condition of funding applies to traineeships as it does to all other full and part time study programmes.
B20: T Levels | C20: The condition of funding will apply to all T Level students starting their T Level programme on or after 1st August 2022 in the same way as it does to other study programmes. | E20: Prior to 2022 to 2023, T Level students who did not hold GCSE maths and English pass grades could not achieve their T Levels - the maths and English GCSEs comprised an 'exit requirement'. There was no funding penalty for students who were on a T Level programme who did not have maths and English. This has now changed. From 2022 to 2023, students who do not have GCSE maths and/or English must study towards the relevant qualifications, following the condition of funding requirements. T Level students who do not meet the condition may have fudning removed.
B21: Unique pupil number (UPN) and former UPN | C21: For some elements of the funding formula, we use the previous year's data. In the majority of cases, we do this using the unique learner number (ULN), and in its absence, the unique pupil number (UPN). | D21: Using previous year's data allows us to look at a whole year's data, rather than a partial dataset taken midway through the year. When students change their UPN between census returns, institutions must return the former UPN as well as the current UPN so that we can accurately track them over the two years. The elements of the funding formula that use data with a two-year lag are: funding rate band (planned hours), programme cost weighting, disadvantage blocks 1 and 2.
B23: Reference data | C23: How | D23: Why | E23: Other considerations
B24: LARS CoF type | C24: This information highlights those qualifications that count as a GCSE (or approved level 3 qualification) for the purposes of the 3, D grade requirement. | D24: All students on a study programme of 485 planned hours or above who hold a GCSE grade 3, D in maths and/or English are required to undertake an approved GCSE qualification (or approved level 3 qualification) in order to meet the condition of funding, stepping stone qualifications will not meet the condition of funding for these students.
B25: LARS funding validity category | C25: This information determines whether or not a qualification is approved to be undertaken to meet the condition of funding. Only qualifications with EFACONFUNDENGLISH (for English) and EFACONFUNDMATHS (for maths) funding validity categories count as valid qualifications. | D25: Only qualifications approved by the Department for Education as being valid English or maths GCSE, level 3 or stepping stone qualifications will count towards meeting the condition of funding.
B26: LARS funding validity effective from date | C26: The student's start date on each maths/English learning aim must fall between these dates in order to count towards meeting the condition of funding. | D26: The effective from date and the last date for new starts determine the effective date range within which a student is eligible to enrol on a qualification. These are set by the awarding organisation responsible for the qualification.
B27: LARS funding validity last date for new starts
B29: Potential errors
B30: Recording error | C30: Result | D30: Explanation | E30: Other considerations
B31: Incorrect QN | C31: The student is unlikely to meet the condition of funding. | D31: An incorrect QN will result in the learning aim either not being identifiable or being identified incorrectly. As the learning aim needs to be correctly identified to ascertain whether or not it counts toward the condition of funding an incorrect QN is very likely to have an adverse effect on the student's status.
B32: Incorrect/missing prior attainment grades | D32: Prior attainment grades indicate whether or not a student is required to undertake approved maths and/or English qualifications in order to meet the condition of funding. If this data is missing we will assume the student does not hold the relevant qualification and, therefore, must be studying an approved qualification. If the student is not enrolled on a suitable qualification, they will not meet the condition of funding. A similar scenario is likely where incorrect prior attainment is recorded.
B33: Incorrect/missing exemption codes | D33: If a student is exempt from either maths or English they are not required to undertake an approved qualification in that subject in order to meet the condition of funding. If the exemption has not been recorded or has been recorded incorrectly and the student is not undertaking approved qualifications they are unlikely to meet the condition of funding.
B34: Incorrect start/planned end/actual end dates | D34: In order to count towards the condition of funding an approved maths or English aim must be enrolled on for a minimum qualifying period (6 weeks for those aims with a planned length of 6 weeks or more, 2 weeks for those aims with a planned length of between 2 and 6 weeks - aims with a planned length less than 2 weeks do not qualify). The start, planned end and actual end dates are used to calculate this qualifying period and if recorded incorrectly are likely to result in aims not qualifying.
B35: Recording maths/English aims that are not approved to count towards the condition of funding | D35: In order to count towards the condition of funding a maths/English aim must be approved and the aim start date must fall within the valid range for that qualification. This is explained in detail in the Condition of funding valid qualifications link on the main sheet.
B36: Approved qualification recorded but start date outside the valid range
B37: Student has a grade 3, D in maths and/or English but is not undertaking a GCSE or equivalent | D37: Any full time student with grade 3, D in maths or English must undertake a GCSE in that subject in order to meet the condition of funding.
B38: No former UPN recorded | C38: The funding calculation may not match in the previous year's data. | D38: If we cannot match the student's former UPN to a UPN recorded in the previous year's data, then we will not be able to use the right data from the previous year. The elements of the funding formula that would use the previous year's data will not operate correctly, and the result of the funding calculation is likely to be distorted, resulting in incorrect funding. For example, if we cannot match in planned hours from the previous year, the student will have 0 planned hours, and the funding calculation will not output funding for them. | E38: 29/04/2019 - Suggest this whole row is now deleted. The matching issue is now internal for SQL code only.

Sheet CoF FlowChart
B1: Return to main page | N1: Go to condition of funding
C2: This interactive tool presents the maths and English condition of funding in a step-by-step user friendly way. The maths and English condition of funding applies to students who are funded under the 16-19 funding methodology only.
C4: The interactive tool and flowchart is not intended to be exhaustive; schools and colleges are recommended to use the tool in conjunction with our detailed guidance on maths and English condition of funding below:
C6: Unless exempt, a student to whom the condition of funding applies must hold or undertake valid qualifications in both maths and English to be compliant with the condition of funding.
C80: Useful links
C82: Guidance
C83: Detailed information for institutions on maths and English condition of funding. | G83: www.gov.uk/16-to-19-funding-maths-and-english-condition-of-funding
C84: How to access and use the Learning Reference Services (LARS) to find the list of qualifications that meet the funding condition on the provision of English and maths. | G84: www.gov.uk/government/publications/condition-of-funding-on-maths-and-english-qualifications-list
C85: Reference data and systems
C86: Find a learning aim | G86: https://findalearningaimbeta.fasst.org.uk/

Sheet CoF FlowChart.old (hidden)
B2: Return to main page
B4: Condition of funding on the provision of mathematics and English | G4: Condition of funding flowchart

Sheet CoF Interactive FlowChart
D1: This interactive tool presents the maths and English condition of funding in a step-by-step user friendly way. The maths and English condition of funding applies to students who are funded under the 16 to 19 funding methodology only. The interactive tool and flowchart is not intended to be exhaustive; schools and colleges are recommended to use the tool in conjunction with our detailed guidance on maths and English condition of funding below: Unless exempt, a student to whom the condition of funding applies must hold or undertake valid qualifications in both maths and English to be compliant with the condition of funding.
C2: Return to main page | R2: Go to condition of funding
C3: Condition of funding interactive flow chart
D12: Is the student under the age of 16 as at 31 August 2020 or on a programme of less than 150 hours?
C98: Useful links
C100: Guidance
C101: Detailed information for institutions on maths and English condition of funding. | G101: www.gov.uk/16-to-19-funding-maths-and-english-condition-of-funding
C102: How to access and use the Learning Reference Services (LARS) to find the list of qualifications that meet the funding condition on the provision of English and maths. | G102: www.gov.uk/government/publications/condition-of-funding-on-maths-and-english-qualifications-list
C103: Reference data and systems
C104: Find a learning aim (FALA) | G104: findalearningaimbeta.fasst.org.uk/

Sheet SN_examples
K1: Return to student numbers
B2: Student numbers (please click on red buttons to see the effects of data errors and the green buttons to reset the data back to a clean record.) | K2: Return to main sheet
B4: Student reference | C4: Student name | D4: Age | E4: NCYear | F4: Enrolment status | G4: QN | H4: Qualification title | I4: SSA tier 2 | J4: Start date | K4: Planned end date | L4: Actual end date | M4: Aim status | N4: Core aim | O4: Qualifies for funding
B5: 100002 | C5: Audrey Forsyth | D5: 17 | E5: 12 | F5: C | G5: 50067515 | H5: BTEC Subsidiary Diploma in Sport (QCF) | I5: 08.1 | J5: 2014-09-02 | K5: 30/07/2015 | L5: 30/07/2015 | M5: 2 | N5: 1 | O5: Y | R5: =K5-J5 -> 331
B6: 100002 | C6: Audrey Forsyth | D6: 17 | E6: 12 | F6: C | G6: 5002193X | H6: GCE A Level in Geology | I6: 02.1 | J6: 2014-09-02 | K6: 30/07/2015 | L6: 30/07/2015 | M6: 2 | N6: 0 | R6: =IF(L5="",999,(L5-J5)) -> 331
B7: 100002 | C7: Audrey Forsyth | D7: 17 | E7: 12 | F7: C | G7: 50025004 | H7: GCE A Level in Psychology A | I7: 02.1 | J7: 2014-09-02 | K7: 30/07/2015 | L7: 30/07/2015 | M7: 2 | N7: 0
G9: =IF(E5<12,"Only students in national curriculum years 12, 13 or 14 are selected for funding purposes so this student is excluded from all calculation elements.",IF(F5="S","Only students with main or current main registration are selected for funding purposes so this student is excluded from all calculation elements.",IF(R5<14,"The planned length of the students programme (based on the ealiest start date and latest planned end date in the funding year) is less than two weeks. Therefore the student does not qualify for funding and is excluded from all calculation elements.",IF(R6<42,"The 6 week qualifying period for this programme has not been met, therefore the student does not qualify for funding and is excluded from all calculation elements.","The student counts for funding purposes.")))) -> The student counts for funding purposes.

Sheet NR_examples
B1: National funding rate per student (full-time/part-time bands) (please click on red buttons to see the effects of data errors and the green buttons to reset the data back to a clean record)
B2: Student reference | C2: Student name | D2: Funded student | E2: Age at 31 Aug | F2: Earliest Start date | G2: Latest Planned End Date | H2: Latest Actual End Date | I2: Top-up Indicator | J2: Planned Learning hours | K2: Planned Employability, Enrichment and Pastoral Hours | L2: Total planned hours | M2: 18 Plus High Needs? | O2: Funding band | P2: National funding rate | Y2: Student Reference | Z2: Student Name | AA2: Funded Student | AB2: Age at 31 Aug | AC2: Earliest Start date | AD2: Latest Planned End Date | AE2: Latest Actual End Date | AF2: Top-up Indicator | AG2: Planned Learning hours | AH2: Planned Employability, Enrichment and Pastoral Hours | AI2: Total Planned Hours | AJ2: 18 Plus High Needs? | AL2: Funding Band | AM2: National Funding Rate
B3: 100001 | C3: Stephen Bailey | D3: 1 | E3: 16 | F3: 2014-09-01 | G3: 2015-07-20 | J3: 490 | K3: 180 | L3: =SUM(J3:K3) -> 670 | M3: =IF(AND(E3>=18,I3=1),"Y","N") -> N | N3: =IF(AND(L3>=485,E3>=18,M3="N"),5,IF(L3>=580,6,IF(L3>=485,4,IF(L3>=385,3,IF(L3>=300,2,1))))) -> 6 | O3: =INDEX($U$3:$U$8,MATCH(N3,$T$3:$T$8,0),1) -> 580+ | P3: =IF(O3="0-299",(L3/640)*4542,INDEX($V$3:$V$8,MATCH(N3,$T$3:$T$8,0),1)) -> 4542 | R3: =IF(AND(J3=0,K3=0),"Recording no planned hours will remove all funding from the student","") ->  | T3: 6 | U3: 580+ | V3: 4542 | Y3: 100001 | Z3: Stephen Bailey | AA3: 1 | AB3: 16 | AC3: 2014-09-01 | AD3: 2015-07-20 | AG3: 490 | AH3: 180 | AI3: =SUM(AG3:AH3) -> 670 | AJ3: =IF(AND(AB3>=18,AF3=1),"Y","N") -> N | AK3: =IF(AND(AI3>=485,AB3>=18,AJ3="N"),5,IF(AI3>=580,6,IF(AI3>=485,4,IF(AI3>=385,3,IF(AI3>=300,2,1))))) -> 6 | AL3: =INDEX($U$3:$U$8,MATCH(AK3,$T$3:$T$8,0),1) -> 580+ | AM3: =IF(AL3="0-299",(AI3/640)*4542,INDEX($V$3:$V$8,MATCH(AK3,$T$3:$T$8,0),1)) -> 4542 | AN3: =AM3-P3 -> 0
B4: 100004 | C4: Isaac Stewart | D4: 1 | E4: 18 | F4: 2014-09-01 | G4: 2015-07-20 | J4: 520 | K4: 120 | L4: =SUM(J4:K4) -> 640 | M4: =IF(AND(E4>=18,I4=1),"Y","N") -> N | N4: =IF(AND(L4>=485,E4>=18,M4="N"),5,IF(L4>=580,6,IF(L4>=485,4,IF(L4>=385,3,IF(L4>=300,2,1))))) -> 5 | O4: 485+ | P4: =IF(O4="0-299",(L4/640)*4542,INDEX($V$3:$V$8,MATCH(N4,$T$3:$T$8,0),1)) -> 3757 | T4: 5 | U4: 485+ | V4: 3757 | Y4: 100004 | Z4: Isaac Stewart | AA4: 1 | AB4: 18 | AC4: 2014-09-01 | AD4: 2015-07-20 | AG4: 520 | AH4: 120 | AI4: =SUM(AG4:AH4) -> 640 | AJ4: =IF(AND(AB4>=18,AF4=1),"Y","N") -> N | AK4: 5 | AL4: 485+ | AM4: =IF(AL4="0-299",(AI4/640)*4542,INDEX($V$3:$V$8,MATCH(AK4,$T$3:$T$8,0),1)) -> 3757 | AN4: =AM4-P4 -> 0
B5: 100005 | C5: Max Campbell | D5: 1 | E5: 16 | F5: 2014-09-02 | G5: 2015-07-20 | I5: 1 | J5: 510 | K5: 150 | L5: 660 | M5: N | N5: 6 | O5: 580+ | P5: 4542 | T5: 4 | U5: 485-579 | V5: 3757 | Y5: 100005 | Z5: Max Campbell | AA5: 1 | AB5: 16 | AC5: 2014-09-02 | AD5: 2015-07-20 | AF5: 1 | AG5: 510 | AH5: 150 | AI5: 660 | AJ5: N | AK5: 6 | AL5: 580+ | AM5: 4542 | AN5: 0
B6: 100008 | C6: Alexandra McLean | D6: 1 | E6: 17 | F6: 2014-09-01 | G6: 2015-07-20 | J6: 440 | K6: 150 | L6: 590 | M6: N | N6: 6 | O6: 580+ | P6: 4542 | T6: 3 | U6: 385-484 | V6: 3056 | Y6: 100008 | Z6: Alexandra McLean | AA6: 1 | AB6: 17 | AC6: 2014-09-01 | AD6: 2015-07-20 | AG6: 440 | AH6: 150 | AI6: 590 | AJ6: N | AK6: 6 | AL6: 580+ | AM6: 4542 | AN6: 0
B7: 100010 | C7: Isaac Nash | D7: 1 | E7: 17 | F7: 2014-09-01 | G7: 2015-07-20 | J7: 360 | K7: 120 | L7: 480 | M7: N | N7: 3 | O7: 385-484 | P7: 3056 | R7: =IF(AND(J3>50,K3=0),"Recording no non-qualification hours will reduce funding for the student","") ->  | T7: 2 | U7: 300-384 | V7: 2416 | Y7: 100010 | Z7: Isaac Nash | AA7: 1 | AB7: 17 | AC7: 2014-09-01 | AD7: 2015-07-20 | AG7: 360 | AH7: 120 | AI7: 480 | AJ7: N | AK7: =IF(AND(AI7>=485,AB7>=18,AJ7="N"),5,IF(AI7>=580,6,IF(AI7>=485,4,IF(AI7>=385,3,IF(AI7>=300,2,1))))) -> 3 | AL7: 385-484 | AM7: 3056 | AN7: 0
B8: 100011 | C8: Gabrielle Vaughan | D8: 1 | E8: 17 | F8: 2014-09-01 | G8: 2015-07-20 | J8: 490 | K8: 180 | L8: 670 | M8: N | N8: 6 | O8: 580+ | P8: 4542 | T8: 1 | U8: 0-299 | V8: 4542 | Y8: 100011 | Z8: Gabrielle Vaughan | AA8: 1 | AB8: 17 | AC8: 2014-09-01 | AD8: 2015-07-20 | AG8: 490 | AH8: 180 | AI8: 670 | AJ8: N | AK8: =IF(AND(AI8>=485,AB8>=18,AJ8="N"),5,IF(AI8>=580,6,IF(AI8>=485,4,IF(AI8>=385,3,IF(AI8>=300,2,1))))) -> 6 | AL8: 580+ | AM8: 4542 | AN8: 0
B9: 100012 | C9: Liam Morgan | D9: 1 | E9: 18 | F9: 2014-09-01 | G9: 2015-07-20 | I9: 1 | J9: 630 | K9: 50 | L9: 680 | M9: Y | N9: 6 | O9: 580+ | P9: 4542 | Y9: 100012 | Z9: Liam Morgan | AA9: 1 | AB9: 18 | AC9: 2014-09-01 | AD9: 2015-07-20 | AF9: 1 | AG9: 630 | AH9: 50 | AI9: 680 | AJ9: Y | AK9: 6 | AL9: 580+ | AM9: 4542 | AN9: 0
B10: 100014 | C10: Lillian Scott | D10: 1 | E10: 18 | F10: 2013-09-04 | G10: 2015-07-20 | I10: 1 | J10: 240 | K10: 30 | L10: 270 | M10: Y | N10: 1 | O10: 0-299 | P10: 1916.15625 | Y10: 100014 | Z10: Lillian Scott | AA10: 1 | AB10: 18 | AC10: 2013-09-04 | AD10: 2015-07-20 | AF10: 1 | AG10: 240 | AH10: 30 | AI10: =SUM(AG10:AH10) -> 270 | AJ10: Y | AK10: 1 | AL10: 0-299 | AM10: 1916.15625 | AN10: 0
B11: 100016 | C11: Dylan Mills | D11: 1 | E11: 18 | F11: 2014-09-01 | G11: 2015-07-20 | J11: 390 | K11: 50 | L11: 440 | M11: N | N11: 3 | O11: 385-484 | P11: 3056 | R11: =IF(AND(J3 >1,J3< 50),"Recording weekly hours will reduce funding for the student","") ->  | Y11: 100016 | Z11: Dylan Mills | AA11: 1 | AB11: 18 | AC11: 2014-09-01 | AD11: 2015-07-20 | AG11: 390 | AH11: 50 | AI11: 440 | AJ11: N | AK11: 3 | AL11: 385-484 | AM11: 3056 | AN11: 0
B12: 100019 | C12: Rachel Morgan | D12: 1 | E12: 16 | F12: 2014-09-01 | G12: 2015-07-20 | J12: 330 | K12: 40 | L12: 370 | M12: N | N12: 2 | O12: 300-384 | P12: 2416 | Y12: 100019 | Z12: Rachel Morgan | AA12: 1 | AB12: 16 | AC12: 2014-09-01 | AD12: 2015-07-20 | AG12: 330 | AH12: 40 | AI12: 370 | AJ12: N | AK12: 2 | AL12: 300-384 | AM12: 2416 | AN12: 0
B13: 100022 | C13: Wanda Watson | D13: 1 | E13: 17 | F13: 2014-09-01 | G13: 2015-07-20 | J13: 560 | K13: 100 | L13: 660 | M13: N | N13: 6 | O13: 580+ | P13: 4542 | Y13: 100022 | Z13: Wanda Watson | AA13: 1 | AB13: 17 | AC13: 2014-09-01 | AD13: 2015-07-20 | AG13: 560 | AH13: 100 | AI13: 660 | AJ13: N | AK13: 6 | AL13: 580+ | AM13: 4542 | AN13: 0
B14: 100023 | C14: Joanne Greene | D14: 1 | E14: 18 | F14: 2013-09-03 | G14: 2015-07-20 | I14: 1 | J14: 480 | K14: 80 | L14: 560 | M14: Y | N14: 4 | O14: 485-579 | P14: 3757 | Y14: 100023 | Z14: Joanne Greene | AA14: 1 | AB14: 18 | AC14: 2013-09-03 | AD14: 2015-07-20 | AF14: 1 | AG14: 480 | AH14: 80 | AI14: 560 | AJ14: Y | AK14: 4 | AL14: 485-579 | AM14: 3757 | AN14: 0
B15: 100025 | C15: Ava Peters | D15: 1 | E15: 17 | F15: 2014-09-01 | G15: 2015-07-20 | J15: 490 | K15: 100 | L15: 590 | M15: N | N15: 6 | O15: 580+ | P15: 4542 | R15: =IF(I14=0,"A missing top-up indicator can affect the funding band of the student and reduce funding","") ->  | Y15: 100025 | Z15: Ava Peters | AA15: 1 | AB15: 17 | AC15: 2014-09-01 | AD15: 2015-07-20 | AG15: 490 | AH15: 100 | AI15: 590 | AJ15: N | AK15: 6 | AL15: 580+ | AM15: 4542 | AN15: 0
B16: 100026 | C16: Felicity Langdon | D16: 1 | E16: 16 | F16: 2014-09-01 | G16: 2015-07-20 | I16: 1 | J16: 460 | K16: 110 | L16: 570 | M16: N | N16: 4 | O16: 485-579 | P16: 3757 | Y16: 100026 | Z16: Felicity Langdon | AA16: 1 | AB16: 16 | AC16: 2014-09-01 | AD16: 2015-07-20 | AF16: 1 | AG16: 460 | AH16: 110 | AI16: 570 | AJ16: N | AK16: 4 | AL16: 485-579 | AM16: 3757 | AN16: 0
B17: 100028 | C17: Ruth Rampling | D17: 1 | E17: 18 | F17: 2014-09-01 | G17: 2015-07-20 | J17: 390 | K17: 80 | L17: 470 | M17: N | N17: 3 | O17: 385-484 | P17: 3056 | Y17: 100028 | Z17: Ruth Rampling | AA17: 1 | AB17: 18 | AC17: 2014-09-01 | AD17: 2015-07-20 | AG17: 390 | AH17: 80 | AI17: 470 | AJ17: N | AK17: 3 | AL17: 385-484 | AM17: 3056 | AN17: 0
B18: 100030 | C18: Dorothy Hardacre | D18: 1 | E18: 17 | F18: 2014-09-01 | G18: 2015-07-20 | J18: 440 | K18: 70 | L18: 510 | M18: N | N18: 4 | O18: 485-579 | P18: 3757 | Y18: 100030 | Z18: Dorothy Hardacre | AA18: 1 | AB18: 17 | AC18: 2014-09-01 | AD18: 2015-07-20 | AG18: 440 | AH18: 70 | AI18: 510 | AJ18: N | AK18: 4 | AL18: 485-579 | AM18: 3757 | AN18: 0
K20: Total national rate funding | P20: =SUM(P3:P19) -> 60322.15625
B21: 540+ | C21: =COUNTIF(O3:O18,B21) -> 0 | D21: =C21/SUM($C$21:$C$26) ->  | I21: =ROUND($D$30*D21,0) -> 
B22: 450+ | C22: =COUNTIF(O3:O18,B22) -> 0 | D22: =C22/SUM($C$21:$C$26) ->  | I22: =ROUND($D$30*D22,0) -> 
B23: 450-539 | C23: =COUNTIF(O3:O18,B23) -> 0
B24: 360-449 | C24: =COUNTIF(O3:O18,B24) -> 0
B25: 280-359 | C25: =COUNTIF(O3:O18,B25) -> 0
B26: 0-279 | C26: =COUNTIF(O3:O18,B26) -> 0
C28: =SUM(C21:C27) -> 0 | D28: =SUM(D21:D27) ->  | I28: =SUM(I21:I27) -> 
B30: Lagged Student Number | D30: 25
B32: Return to national funding rate per student
B33: Return to main sheet

Sheet RET_examples
B1: Student retention (please click on red buttons to see the effects of data errors and the green buttons to reset the data back to a clean record)
B2: Example 1 - invalid qualification numbers (QNs)
B3: Student reference | C3: Student name | D3: Age | E3: Qualification number | F3: Qualification title | G3: LARS aim type | H3: SSA tier 2 | I3: Start Date | J3: Planned End Date | K3: Actual End Date | L3: Learning aim status | M3: Core aim | N3: Qualification category | O3: Programme category | P3: Retention status | S3: Only retained aims | T3: Core aim status | U3: Core Aim status desc | W3: LearnAimRef | X3: LearnAimRefTitle | Y3: LearnAimRefTypeDesc | Z3: Qualification category
B4: 100011 | C4: Gabrielle Vaughan | D4: 16 | E4: 50022635 | F4: =IF(ISERROR(MATCH(E4,W:W,0))=TRUE,"No match",INDEX(X:Y,MATCH(E4,W:W,0),1)) -> GCE AS Level in Sociology | G4: =IF(ISERROR(MATCH(E4,W:W,0))=TRUE,"No match",INDEX(X:Y,MATCH(E4,W:W,0),2)) -> GCE AS level | H4: 02.1 | I4: 2013-09-02 | J4: 2014-07-21 | K4: 2014-07-21 | L4: 2 | M4: 0 | N4: =IF(G4="No match","Unknown",INDEX($Z$4:$Z$7,MATCH($E4,$W$4:$W$7,0))) -> Academic | O4: =IF(SUM(M4:M7)>0,"Vocational","Academic") -> Academic | P4: =IF(O4="Academic",IF(OR(S4=1,S4=2,S5=1,S5=1,S6=1,S6=2,S7=1,S7=2),"Retained","Not retained"),IF(OR(U4="Retained",U5="Retained",U6="Retained",U7="Retained"),"Retained","Not retained")) -> Retained | S4: =IF(N4=$O$4,L4,"") -> 2 | T4: =IF(M4=1,L4,"") ->  | U4: =IF(OR(T4=1,T4=2),"Retained","Not Retained") -> Not Retained | W4: 50022635 | X4: GCE AS Level in Sociology | Y4: GCE AS level | Z4: Academic
B5: 100011 | C5: Gabrielle Vaughan | D5: 16 | E5: 50022696 | F5: =IF(ISERROR(MATCH(E5,W:W,0))=TRUE,"No match",INDEX(X:Y,MATCH(E5,W:W,0),1)) -> GCE AS Level in Biology | G5: =IF(ISERROR(MATCH(E5,W:W,0))=TRUE,"No match",INDEX(X:Y,MATCH(E5,W:W,0),2)) -> GCE AS level | H5: 12.1 | I5: 2013-09-02 | J5: 2014-07-21 | K5: 2014-07-21 | L5: 2 | M5: 0 | N5: =IF(G5="No match","Unknown",INDEX($Z$4:$Z$7,MATCH($E5,$W$4:$W$7,0))) -> Academic | S5: =IF(N5=$O$4,L5,"") -> 2 | T5: =IF(M5=1,L5,"") ->  | U5: =IF(OR(T5=1,T5=2),"Retained","Not Retained") -> Not Retained | W5: 50022696 | X5: GCE AS Level in Biology | Y5: GCE AS level | Z5: Academic
B6: 100011 | C6: Gabrielle Vaughan | D6: 16 | E6: 5002498X | F6: =IF(ISERROR(MATCH(E6,W:W,0))=TRUE,"No match",INDEX(X:Y,MATCH(E6,W:W,0),1)) -> GCE AS Level in English Language B | G6: =IF(ISERROR(MATCH(E6,W:W,0))=TRUE,"No match",INDEX(X:Y,MATCH(E6,W:W,0),2)) -> GCE AS level | H6: 11.1 | I6: 2013-09-02 | J6: 2014-07-21 | K6: 2014-07-21 | L6: 2 | M6: 0 | N6: =IF(G6="No match","Unknown",INDEX($Z$4:$Z$7,MATCH($E6,$W$4:$W$7,0))) -> Academic | S6: 2 | T6: =IF(M6=1,L6,"") ->  | U6: Not Retained | W6: 5002498X | X6: GCE AS Level in English Language B | Y6: GCE AS level | Z6: Academic
B7: 100011 | C7: Gabrielle Vaughan | D7: 16 | E7: 50025946 | F7: =IF(ISERROR(MATCH(E7,W:W,0))=TRUE,"No match",INDEX(X:Y,MATCH(E7,W:W,0),1)) -> GCE AS Level in Geography | G7: =IF(ISERROR(MATCH(E7,W:W,0))=TRUE,"No match",INDEX(X:Y,MATCH(E7,W:W,0),2)) -> GCE AS level | H7: 11.2 | I7: 2013-09-02 | J7: 2014-07-21 | K7: 2014-07-21 | L7: 2 | M7: 0 | N7: =IF(G7="No match","Unknown",INDEX($Z$4:$Z$7,MATCH($E7,$W$4:$W$7,0))) -> Academic | S7: 2 | T7: =IF(M7=1,L7,"") ->  | U7: Not Retained | W7: 50025946 | X7: GCE AS Level in Geography | Y7: GCE AS level | Z7: Academic
F9: =IF(P4="Not Retained","The aim type cannot be determined for invalid QANs meaning the aims default to vocational. The programme is academic but no academic aims are found, hence the student is not retained","The student is retained") -> The student is retained
B15: Example 2 - incorrect aim status
B16: Student reference | C16: Student name | D16: Age | E16: Qualification number | F16: Qualification title | G16: LARS aim type | H16: SSA tier 2 | I16: Start Date | J16: Planned End Date | K16: Actual End Date | L16: Learning aim status | M16: Core aim | N16: Qualification category | O16: Programme category | P16: Retention status
B17: 100009 | C17: Matt McGrath | D17: 18 | E17: 5002498X | F17: GCE A Level in Geography | G17: GCE A Level | H17: 11.1 | I17: 2013-09-02 | J17: 2014-07-21 | K17: 2014-07-21 | L17: 2 | M17: 0 | N17: Academic | O17: Vocational | P17: =IF(L18=3,"Not retained","Retained") -> Retained
B18: 100009 | C18: Matt McGrath | D18: 18 | E18: 50025946 | F18: BTEC Subsidiary Diploma in Applied Science (QCF) | G18: Diploma | H18: 02.1 | I18: 2013-09-02 | J18: 2014-07-21 | K18: 2014-07-21 | L18: 2 | M18: 1 | N18: Vocational
B19: 100009 | C19: Matt McGrath | D19: 18 | E19: 50067254 | F19: GCE A Level in Psychology A | G19: GCE A Level | H19: 02.1 | I19: 2013-09-02 | J19: 2014-07-21 | K19: 2014-07-21 | L19: 2 | M19: 0 | N19: Academic
F21: =IF(P17="Not Retained","The core aim in this vocational programme is erroniously recorded as withdrawn meaning the aim (and the student) is not retained","The student is retained") -> The student is retained
N28: Return to retention
N29: Return to main page

Sheet CORE_examples
B1: Core aims (please click on red buttons to see the effects of data errors and the green buttons to reset the data back to a clean record)
B2: Example 1 - incorrect core aim
B3: Student reference | C3: Student name | D3: Age | E3: Qualification number | F3: Qualification title | G3: LARS aim type | H3: SSA tier 2 | I3: Start Date | J3: Planned End Date | K3: Actual End Date | L3: Learning aim status | M3: Core aim | N3: Qualification category | O3: Programme category | P3: Retention status | S3: Only retained aims | T3: Core aim status | U3: Core Aim status desc
B4: 100018 | C4: Christian Graham | D4: 17 | E4: 50067254 | F4: =IF(ISERROR(MATCH(E4,W:W,0))=TRUE,"No Match",INDEX(X:Y,MATCH(E4,W:W,0),1)) -> BTEC Subsidiary Diploma in Applied Science (QCF) | G4: =IF(ISERROR(MATCH(E4,W:W,0))=TRUE,"No Match",INDEX(X:Y,MATCH(E4,W:W,0),2)) -> Diploma | H4: 02.1 | I4: 2013-09-02 | J4: 2014-07-21 | K4: 2014-07-21 | L4: 2 | M4: 0 | N4: =IF(G4="GCE AS level","Academic",IF(G4="GCSE","Academic","Vocational")) -> Vocational | O4: =IF(SUM(M4:M7)>0,"Vocational","Academic") -> Vocational | P4: =IF(O4="Academic",IF(OR(S4=1,S4=2,S5=1,S5=1,S6=1,S6=2,S7=1,S7=2),"Retained","Not Retained"),IF(OR(U4="Retained",U5="Retained",U6="Retained",U7="Retained"),"Retained","Not Retained")) -> Retained | S4: =IF(N4=$O$4,L4,"") -> 2 | T4: =IF(M4=1,L4,"") ->  | U4: =IF(OR(T4=1,T4=2),"Retained","Not Retained") -> Not Retained | W4: LearnAimRef | X4: LearnAimRefTitle | Y4: LearnAimRefTypeDesc
B5: 100018 | C5: Christian Graham | D5: 17 | E5: 50091475 | F5: =IF(ISERROR(MATCH(E5,W:W,0))=TRUE,"No Match",INDEX(X:Y,MATCH(E5,W:W,0),1)) -> Subsidiary Diploma in IT (QCF) | G5: =IF(ISERROR(MATCH(E5,W:W,0))=TRUE,"No Match",INDEX(X:Y,MATCH(E5,W:W,0),2)) -> Diploma | H5: 06.1 | I5: 2013-09-02 | J5: 2014-07-21 | K5: 2014-07-21 | L5: 2 | M5: 1 | N5: =IF(G5="GCE AS level","Academic",IF(G5="GCSE","Academic","Vocational")) -> Vocational | S5: =IF(N5=$O$4,L5,"") -> 2 | T5: =IF(M5=1,L5,"") -> 2 | U5: =IF(OR(T5=1,T5=2),"Retained","Not Retained") -> Retained | W5: 50022635 | X5: GCE AS Level in Sociology | Y5: GCE AS level
B6: 100018 | C6: Christian Graham | D6: 17 | E6: 60131597 | F6: =IF(ISERROR(MATCH(E6,W:W,0))=TRUE,"No Match",INDEX(X:Y,MATCH(E6,W:W,0),1)) -> GCSE in English | G6: =IF(ISERROR(MATCH(E6,W:W,0))=TRUE,"No Match",INDEX(X:Y,MATCH(E6,W:W,0),2)) -> GCSE | H6: 12.1 | I6: 2013-09-02 | J6: 2014-07-21 | K6: 2014-01-13 | L6: 3 | M6: 0 | N6: Academic | S6: =IF(N6=$O$4,L6,"") ->  | T6: =IF(M6=1,L6,"") ->  | U6: Not Retained | W6: 50022696 | X6: GCE AS Level in Biology | Y6: GCE AS level
B7: 100018 | C7: Christian Graham | D7: 17 | E7: 50067503 | F7: =IF(ISERROR(MATCH(E7,W:W,0))=TRUE,"No Match",INDEX(X:Y,MATCH(E7,W:W,0),1)) -> BTEC Subsidiary Diploma in Business (QCF) | G7: =IF(ISERROR(MATCH(E7,W:W,0))=TRUE,"No Match",INDEX(X:Y,MATCH(E7,W:W,0),2)) -> Diploma | H7: 15.3 | I7: 2013-09-02 | J7: 2014-07-21 | K7: 2014-07-21 | L7: 2 | M7: 0 | N7: Vocational | S7: =IF(N7=$O$4,L7,"") -> 2 | T7: =IF(M7=1,L7,"") ->  | U7: Not Retained | W7: 5002498X | X7: GCE AS Level in English Language B | Y7: GCE AS level
W8: 50025946 | X8: GCE AS Level in Geography | Y8: GCE AS level
F9: =IF(M5=0,"The student is following a vocational programme but does not have a core aim identified, therefore is treated as academic. With only 1 academic aim - which is set to withdrawn - the student is not retained.","The student is retained") -> The student is retained | W9: 50067254 | X9: BTEC Subsidiary Diploma in Applied Science (QCF) | Y9: Diploma
M10: 1 | W10: 50067503 | X10: BTEC Subsidiary Diploma in Business (QCF) | Y10: Diploma
W11: 50091475 | X11: Subsidiary Diploma in IT (QCF) | Y11: Diploma
W12: 60131597 | X12: GCSE in English | Y12: GCSE
W13: 50069329 | X13: Certificate in Photography | Y13: Certificate
B15: Example 2 - core aim recorded for an academic programme
B16: Student reference | C16: Student name | D16: Age | E16: Qualification number | F16: Qualification title | G16: LARS aim type | H16: SSA tier 2 | I16: Start Date | J16: Planned End Date | K16: Actual End Date | L16: Learning aim status | M16: Core aim | N16: Qualification category | O16: Programme category | P16: Retention status | S16: Only retained aims | T16: Core aim status | U16: Core Aim status desc
B17: 100851 | C17: Ife Adeola | D17: 16 | E17: 50022696 | F17: =IF(ISERROR(MATCH(E17,W:W,0))=TRUE,"No Match",INDEX(X:Y,MATCH(E17,W:W,0),1)) -> GCE AS Level in Biology | G17: =IF(ISERROR(MATCH(E17,W:W,0))=TRUE,"No Match",INDEX(X:Y,MATCH(E17,W:W,0),2)) -> GCE AS level | H17: 09.3 | L17: 3 | M17: 0 | N17: Vocational | O17: =IF(SUM(M17:M20)>0,"Vocational","Academic") -> Academic | P17: =IF(O17="Academic",IF(OR(S17=1,S17=2,S18=1,S18=1,S19=1,S19=2,S20=1,S20=2),"Retained","Not Retained"),IF(OR(U17="Retained",U18="Retained",U19="Retained",U20="Retained"),"Retained","Not Retained")) -> Retained | S17: =IF(N17=$O$17,L17,"") ->  | T17: =IF(M17=1,L17,"") ->  | U17: =IF(OR(T17=1,T17=2),"Retained","Not Retained") -> Not Retained
B18: 100851 | C18: Ife Adeola | D18: 16 | E18: 5002498X | F18: =IF(ISERROR(MATCH(E18,W:W,0))=TRUE,"No Match",INDEX(X:Y,MATCH(E18,W:W,0),1)) -> GCE AS Level in English Language B | G18: =IF(ISERROR(MATCH(E18,W:W,0))=TRUE,"No Match",INDEX(X:Y,MATCH(E18,W:W,0),2)) -> GCE AS level | H18: 12.1 | L18: 2 | M18: 0 | N18: Academic | S18: =IF(N18=$O$17,L18,"") -> 2 | T18: =IF(M18=1,L18,"") ->  | U18: =IF(OR(T18=1,T18=2),"Retained","Not Retained") -> Not Retained
B19: 100851 | C19: Ife Adeola | D19: 16 | E19: 50025946 | F19: =IF(ISERROR(MATCH(E19,W:W,0))=TRUE,"No Match",INDEX(X:Y,MATCH(E19,W:W,0),1)) -> GCE AS Level in Geography | G19: =IF(ISERROR(MATCH(E19,W:W,0))=TRUE,"No Match",INDEX(X:Y,MATCH(E19,W:W,0),2)) -> GCE AS level | H19: 02.1 | I19: 2013-09-02 | J19: 2014-07-21 | K19: 2014-01-13 | L19: 2 | M19: 0 | N19: Academic | S19: =IF(N19=$O$17,L19,"") -> 2 | T19: =IF(M19=1,L19,"") ->  | U19: Not Retained
B20: 100851 | C20: Ife Adeola | D20: 16 | E20: 50069329 | F20: =IF(ISERROR(MATCH(E20,W:W,0))=TRUE,"No Match",INDEX(X:Y,MATCH(E20,W:W,0),1)) -> Certificate in Photography | G20: =IF(ISERROR(MATCH(E20,W:W,0))=TRUE,"No Match",INDEX(X:Y,MATCH(E20,W:W,0),2)) -> Certificate | H20: 09.2 | L20: 2 | M20: 0 | N20: Academic | S20: =IF(N20=$O$17,L20,"") -> 2 | T20: =IF(M20=1,L20,"") ->  | U20: Not Retained
F22: =IF(M17=1,S22,"The student is retained") -> The student is retained | S22: An academic aim has been recorded as the core aim. As core aims should only be recorded for vocational programmes or mixed programmes with a vocational core, this denotes the programme is vocational and not academic. Because the student has withdrawn from that aim (status 3), they are not retained on it. Therefore the student is not retained for the whole of their programme, as students on vocational programmes have to be retained on their core aim to count as retained for the programme.
N28: Return to retention
N29: Return to main page

Sheet PCW_examples
M1: Return to main sheet
B2: Programme cost weighting (please click on red buttons to see the effects of data errors and the green buttons to reset the data back to a clean record) | M2: Return to programme cost weighting
B4: Student reference | C4: Student name | D4: Age | E4: Qualification number | F4: Qualification title | G4: LARS aim type | H4: SSA tier 2 | I4: Start Date | J4: Planned End Date | K4: Actual End Date | L4: Learning aim status | M4: Core aim | N4: Qualification category | O4: Programme category | P4: Programme weighting
B5: 100033 | C5: Alison Morgan | D5: 18 | E5: 50091475 | F5: Subsidiary Diploma in IT (QCF) | G5: Diploma | H5: 06.1 | I5: 2013-09-02 | J5: 2014-07-21 | K5: 2014-07-21 | L5: 2 | M5: 1 | N5: =IF(M5=1,"Vocational","Academic") -> Vocational | O5: =IF(M5=1,"Vocational","Academic") -> Vocational | P5: =IF(O5="Vocational",INDEX($T$18:$T$22,MATCH(H5,R18:R22,0),1),1) -> 1.2
B6: 100033 | C6: Alison Morgan | D6: 18 | E6: 50024978 | F6: GCE A Level in English Language B | G6: GCE A Level | H6: 12.1 | I6: 2013-09-02 | J6: 2014-07-21 | K6: 2014-07-21 | L6: 2 | M6: 0 | N6: =IF(G6="Diploma", "Vocational","Academic") -> Academic
B7: 100033 | C7: Alison Morgan | D7: 18 | E7: 50025892 | F7: GCE A Level in Media Studies | G7: GCE A Level | H7: 09.3 | I7: 2013-09-02 | J7: 2014-07-21 | K7: 2014-07-21 | L7: 2 | M7: 0 | N7: Academic
F9: =IF(M5=0,"A core aim has not been returned for any aims in this vocational study programme. This means the programme is treated as academic and the student will, therefore, attract the base weighting of 1.","The student receives the 1.2 vocational weighting") -> The student receives the 1.2 vocational weighting
B17: Student reference | C17: Student name | D17: Age | E17: Qualification number | F17: Qualification title | G17: LARS aim type | H17: SSA tier 2 | I17: Start Date | J17: Planned End Date | K17: Actual End Date | L17: Learning aim status | M17: Core aim | N17: Qualification category | O17: Programme category | P17: Programme weighting
B18: 100023 | C18: Joanne Greene | D18: 17 | E18: 10040973 | F18: =IF(LEN($E18)<8,"No match",W18) -> BTEC Diploma in Graphics | G18: =IF(LEN($E18)<8,"No match",X18) -> Diploma | H18: 09.2 | I18: 2013-09-03 | J18: 2015-07-21 | L18: 1 | M18: 1 | N18: Vocational | O18: =IF(N18="Academic","Academic","Vocational") -> Vocational | P18: =IF(O18="Vocational",INDEX($S$18:$T$22,MATCH(H18,$R$18:$R$22,0),2),1) -> 1.2 | R18: 06.1 | S18: Medium | T18: 1.2 | V18: 10040973 | W18: BTEC Diploma in Graphics | X18: Diploma | Y18: 09.2
B19: 100023 | C19: Joanne Greene | D19: 17 | E19: 50022210 | F19: =IF(LEN($E19)<8,"No match",W19) -> GCE AS Level in Dance | G19: GCE AS Level | H19: 09.1 | I19: 2013-09-03 | J19: 2014-07-21 | K19: 2014-07-21 | L19: 2 | M19: 0 | N19: Academic | R19: 12.1 | S19: Base | T19: 1 | V19: 50022210 | W19: GCE AS Level in Dance | X19: GCE AS Level | Y19: 09.1
B20: 100023 | C20: Joanne Greene | D20: 17 | E20: 50025995 | F20: GCE AS Level in Media Studies | G20: GCE AS Level | H20: 09.3 | I20: 2013-09-03 | J20: 2014-07-21 | K20: 2014-07-21 | L20: 2 | M20: 0 | N20: Academic | R20: 09.3 | S20: Base | T20: 1 | V20: 50025995 | W20: GCE AS Level in Media Studies | X20: GCE AS Level | Y20: 09.3
R21: 09.2 | S21: Medium | T21: 1.2
F22: =IF(O18="Academic","The sector subject area cannot be determined for invalid QANs, meaning a weighting of 1 is assigned. The student will, therefore, attract the base weighting of 1.","The student receives the 1.2 vocational weighting") -> The student receives the 1.2 vocational weighting | R22: 09.1 | S22: Medium | T22: 1.2
B30: Student reference | C30: Student name | D30: Age | E30: Qualification number | F30: Qualification title | G30: Core aim | H30: Programme type | I30: Programme weighting
B31: 100024 | C31: Noor Holloway | D31: 16 | E31: ZPROG001 | F31: Programme aim | G31: 0 | H31: T Level | I31: =IF(E32="ZTLOS002",1.3,1) -> 1.3
B32: 100024 | C32: Noor Holloway | D32: 16 | E32: ZTLOS002 | F32: =IF(E32="ZTLOS002","T Level Occupational Specialism - Civil engineering","No occupational specialism recorded") -> T Level Occupational Specialism - Civil engineering | G32: =IF(E32="ZTLOS002","0","-") -> 0
B33: 100024 | C33: Noor Holloway | D33: 16 | E33: None | F33: T Level Technical Qualification in Design, Surveying and Planning for Construction | G33: 1
B34: 100024 | C34: Noor Holloway | D34: 16 | E34: 6031364X | F34: GCE A Level in Further Mathematics B (MEI) | G34: 0
F36: =IF(I31=1.3,"The student has a valid ZTLOS code recorded to indicate the occupational specialism for their T Level and therefore receives the correct weighting.","The student has no ZTLOS code recorded for their occupational specialism, and therefore receives no programme weighting uplift.") -> The student has a valid ZTLOS code recorded to indicate the occupational specialism for their T Level and therefore receives the correct weighting.

Sheet DIS_examples
B4: Disadvantage (please click on red buttons to see the effects of data errors and the green buttons to reset the data back to a clean record)
B6: Student reference | C6: Student name | D6: Funded student | E6: Age at 31 Aug | F6: Postcode | G6: Earliest start date | H6: Latest planned end date | I6: Latest actual end date | J6: Disadvantage block 1 uplift | K6: Maths GCSE prior attainment year 11 | L6: English GCSE prior attainment year 11 | M6: Total block 2 instances | N6: Planned learning hours | O6: Planned employability, enrichment and pastoral hours | P6: Total planned hours | T6: Postcode | U6: Maths prior attainment by end of Year 11 | V6: English prior attainment by end of Year 11
B7: 100001 | C7: Stephen Bailey | D7: 1 | E7: 16 | F7: B19 2SW | G7: 2014-09-01 | H7: 2015-07-20 | J7: =IF(ISERROR(MATCH(F7,$Y$8:$Y$13,0))=TRUE,1,INDEX($Z$8:$Z$13,MATCH(F7,$Y$8:$Y$13,0),1)) -> 1.09 | K7: 2 | L7: 2 | M7: =IF(OR(K7=2,K7=3),1,0)+IF(OR(L7=2,L7=3),1,0) -> 2 | N7: 450 | O7: 180 | P7: 630 | T7: B19 2SW | U7: 2 | V7: 2
B8: 100004 | C8: Isaac Stewart | D8: 1 | E8: 18 | F8: B8 3QU | G8: 2014-09-01 | H8: 2015-07-20 | J8: =IF(ISERROR(MATCH(F8,$Y$8:$Y$13,0))=TRUE,1,INDEX($Z$8:$Z$13,MATCH(F8,$Y$8:$Y$13,0),1)) -> 1.07 | K8: 1 | L8: 1 | M8: =IF(OR(K8=2,K8=3),1,0)+IF(OR(L8=2,L8=3),1,0) -> 0 | N8: 480 | O8: 120 | P8: 600 | T8: B8 3QU | U8: 1 | V8: 1 | X8: lee bank | Y8: B15 2AX | Z8: 1.02
B9: 100005 | C9: Max Campbell | D9: 1 | E9: 16 | F9: B23 6RE | G9: 2014-09-02 | H9: 2015-07-20 | J9: 1.03 | K9: 1 | L9: 1 | M9: 0 | N9: 470 | O9: 150 | P9: 620 | T9: B23 6RE | U9: 1 | V9: 1 | X9: sbrook | Y9: B11 1LU | Z9: 1.02
B10: 100008 | C10: Alexandra McLean | D10: 1 | E10: 17 | F10: B8 3QU | G10: 2014-09-01 | H10: 2015-07-20 | J10: 1.07 | K10: 3 | L10: 1 | M10: 1 | N10: 400 | O10: 150 | P10: 550 | T10: B8 3QU | U10: 3 | V10: 1 | X10: erdington | Y10: B23 6RE | Z10: 1.03
B11: 100010 | C11: Isaac Nash | D11: 1 | E11: 17 | F11: B31 1PG | G11: 2014-09-01 | H11: 2015-07-20 | J11: 1.11 | K11: 3 | L11: 2 | M11: 2 | N11: 320 | O11: 120 | P11: 440 | T11: B31 1PG | U11: 3 | V11: 2 | X11: northfield | Y11: B31 1PG | Z11: 1.11
B12: 100011 | C12: Gabrielle Vaughan | D12: 1 | E12: 17 | F12: B23 6RE | G12: 2014-09-01 | H12: 2015-07-20 | J12: 1.03 | K12: 1 | L12: 1 | M12: 0 | N12: 450 | O12: 180 | P12: 630 | T12: B23 6RE | U12: 1 | V12: 1 | X12: saltley | Y12: B8 3QU | Z12: 1.07
B13: 100012 | C13: Liam Morgan | D13: 1 | E13: 18 | F13: B8 3QU | G13: 2014-09-01 | H13: 2015-07-20 | J13: 1.07 | K13: 2 | L13: 2 | M13: 2 | N13: 590 | O13: 50 | P13: 640 | T13: B8 3QU | U13: 2 | V13: 2 | X13: newtown | Y13: B19 2SW | Z13: 1.09
B14: 100014 | C14: Lillian Scott | D14: 1 | E14: 18 | F14: B15 2AX | G14: 2013-09-04 | H14: 2015-07-20 | J14: 1.02 | K14: 1 | L14: 1 | M14: 0 | N14: 200 | O14: 30 | P14: 230 | T14: B15 2AX | U14: 1 | V14: 1
B15: 100016 | C15: Dylan Mills | D15: 1 | E15: 18 | F15: B19 2SW | G15: 2014-09-01 | H15: 2015-07-20 | J15: 1.09 | K15: 2 | L15: 1 | M15: 1 | N15: 350 | O15: 50 | P15: 400 | T15: B19 2SW | U15: 2 | V15: 1
B16: 100019 | C16: Rachel Morgan | D16: 1 | E16: 16 | F16: B19 2SW | G16: 2014-09-01 | H16: 2015-07-20 | J16: 1.09 | K16: 1 | L16: 1 | M16: 0 | N16: 290 | O16: 40 | P16: 330 | T16: B19 2SW | U16: 1 | V16: 1
B17: 100022 | C17: Wanda Watson | D17: 1 | E17: 17 | F17: B31 1PG | G17: 2014-09-01 | H17: 2015-07-20 | J17: 1.11 | K17: 2 | L17: 2 | M17: 2 | N17: 520 | O17: 100 | P17: 620 | T17: B31 1PG | U17: 2 | V17: 2
B18: 100023 | C18: Joanne Greene | D18: 1 | E18: 18 | F18: B15 2AX | G18: 2013-09-03 | H18: 2015-07-20 | J18: 1.02 | K18: 2 | L18: 1 | M18: 1 | N18: 440 | O18: 80 | P18: 520 | T18: B15 2AX | U18: 2 | V18: 1
B19: 100025 | C19: Ava Peters | D19: 1 | E19: 17 | F19: B19 2SW | G19: 2014-09-01 | H19: 2015-07-20 | J19: 1.09 | K19: 2 | L19: 2 | M19: 2 | N19: 450 | O19: 100 | P19: 550 | T19: B19 2SW | U19: 2 | V19: 2
B20: 100026 | C20: Felicity Langdon | D20: 1 | E20: 16 | F20: B23 6RE | G20: 2014-09-01 | H20: 2015-07-20 | J20: 1.03 | K20: 1 | L20: 1 | M20: 0 | N20: 420 | O20: 110 | P20: 530 | T20: B23 6RE | U20: 1 | V20: 1
B21: 100028 | C21: Ruth Rampling | D21: 1 | E21: 18 | F21: B31 1PG | G21: 2014-09-01 | H21: 2015-07-20 | J21: 1.11 | K21: 2 | L21: 2 | M21: 2 | N21: 350 | O21: 80 | P21: 430 | T21: B31 1PG | U21: 2 | V21: 2
B22: 100030 | C22: Dorothy Hardacre | D22: 1 | E22: 17 | F22: B23 6RE | G22: 2014-09-01 | H22: 2015-07-20 | J22: 1.03 | K22: 1 | L22: 1 | M22: 0 | N22: 400 | O22: 70 | P22: 470 | T22: B23 6RE | U22: 1 | V22: 1
B25: Disadvantage block 1 factor | E25: =AVERAGE(J7:J22) -> 1.06625 | G25: =IF(E25<1.065,"Incorrect or missing postcodes mean disadvantage uplift data cannot be matched to the student bringing the institutions overall disadvantage block 1 factor down and reducing disadvantage funding allocated.","Postcode data is accurate and disadvantage block 1 factor and funding is correct") -> Postcode data is accurate and disadvantage block 1 factor and funding is correct
B26: Disadvantage block 2 instances per student | E26: =SUM(M7:M22)/SUM(D7:D22) -> 0.9375
G30: =IF(E26<0.935,"Incorrect or missing prior attainment data means disadvantage block 2 instances per student are incorrect reducing the institution's overall disadvantage block 2 funding allocated.","Prior attainment data is accurate and disadvantage block 2 funding is correct") -> Prior attainment data is accurate and disadvantage block 2 funding is correct
F36: Return to main sheet
F37: Return to disadvantage

Sheet T_Level_examples
H1: Return to T Levels
B2: T Levels (please click on red buttons to see the effects of data errors and the green button to reset the data back to a clean record) | H2: Return to main sheet
B3: Example 1 - Technical qualification (TQ) is not the core aim
B4: Student reference | C4: Student name | D4: Age | E4: Qualification number | F4: Qualification title | G4: Core aim | H4: Programme type - aim level | I4: Programme weighting | J4: Programme type - overall programme
B5: 100489 | C5: Avery Falana | D5: 17 | E5: ZPROG001 | F5: Generic code to identify ILR programme aims | G5: 0 | H5: 31 - T Level | I5: 1.2 | J5: T Level
B6: 100489 | C6: Avery Falana | D6: 17 | E6: 60358294 | F6: T Level Technical Qualification in Education and Childcare | G6: 1 | H6: 31 - T Level
B7: 100489 | C7: Avery Falana | D7: 17 | E7: ZTLOS007 | F7: T Level Occupational Specialism - Assisting teaching | G7: 0 | H7: 31 - T Level
B8: 100489 | C8: Avery Falana | D8: 17 | E8: ZWRKX003 | F8: T Level Industry Placement | G8: 0 | H8: 31 - T Level
B9: 100489 | C9: Avery Falana | D9: 17 | E9: 60147003 | F9: GCSE (9-1) in Mathematics | G9: 0 | H9: 31 - T Level
F11: =IF(G6<1,"The student does not have the T Level technical qualification as their core aim, and therefore does not count as a T Level student.","The student has the T Level as their technical qualification and therefore is counted as a T Level student.") -> The student has the T Level as their technical qualification and therefore is counted as a T Level student.
B15: Example 2 - T Level programme hours below the band minimum
B16: Student reference | C16: Student name | D16: Age | E16: Qualification number | F16: Qualification title | G16: T Level qualification hours | H16: T Level non qualification hours | I16: Total T Level hours | J16: Funding band
B17: 100489 | C17: Avery Falana | D17: 17 | E17: ZPROG001 | F17: Generic code to identify ILR programme aims | G17: 900 | H17: 550 | I17: =G17+H17 -> 1450 | J17: Band 7 (T Level)
B18: 100489 | C18: Avery Falana | D18: 17 | E18: 60358294 | F18: T Level Technical Qualification in Education and Childcare
B19: 100489 | C19: Avery Falana | D19: 17 | E19: ZTLOS007 | F19: T Level Occupational Specialism - Assisting teaching
B20: 100489 | C20: Avery Falana | D20: 17 | E20: ZWRKX003 | F20: T Level Industry Placement
F22: =IF(I17>1449,"The student's total hours is greater than the band minimum and thefore their funding band is correct.","The student's total hours is less than the band minimum and therefore they are funded in a lower, non-T Level funding band.") -> The student's total hours is greater than the band minimum and thefore their funding band is correct.
B26: Example 3 - Hours recorded in the wrong fields
B27: Student reference | C27: Student name | D27: Age | E27: Qualification number | F27: Qualification title | G27: Core aim | H27: Qualification hours | I27: EEP hours | J27: Total hours (study programmes) | K27: T Level qualification hours | L27: T Level non qualification hours | M27: Total T Level hours | N27: Funding band
B28: 100489 | C28: Avery Falana | D28: 17 | E28: ZPROG001 | F28: Generic code to identify ILR programme aims | G28: 0 | H28: 0 | I28: 0 | J28: =H28+I28 -> 0 | K28: 900 | L28: 550 | M28: =K28+L28 -> 1450 | N28: Band 7 (T Level)
B29: 100489 | C29: Avery Falana | D29: 17 | E29: 60358294 | F29: T Level Technical Qualification in Education and Childcare | G29: 1
B30: 100489 | C30: Avery Falana | D30: 17 | E30: ZTLOS007 | F30: T Level Occupational Specialism - Assisting teaching | G30: 0
B31: 100489 | C31: Avery Falana | D31: 17 | E31: ZWRKX003 | F31: T Level Industry Placement | G31: 0
F33: =IF(M28=1450,"The student's hours are correctly recorded in the T Level fields, therefore the funding band is correct.","The student's hours are wrongly recorded in the study programme hours fields, and therefore the funding band is too low.") -> The student's hours are correctly recorded in the T Level fields, therefore the funding band is correct.
B38: Example 4 - Wrong programme type
B39: Student reference | C39: Student name | D39: Age | E39: Qualification number | F39: Qualification title | G39: Core aim | H39: Programme type - aim level | I39: Programme weighting | J39: Programme type - overall programme | K39: T Level qualification hours | L39: T Level non qualification hours | M39: Total T Level hours | N39: Funding band
B40: 100489 | C40: Avery Falana | D40: 17 | E40: ZPROG001 | F40: Generic code to identify ILR programme aims | G40: 0 | H40: 31 - T Level | I40: 1.2 | J40: T Level | K40: 900 | L40: 550 | M40: =K40+L40 -> 1450 | N40: Band 7 (T Level)
B41: 100489 | C41: Avery Falana | D41: 17 | E41: 60358294 | F41: T Level Technical Qualification in Education and Childcare | G41: 1 | H41: 31 - T Level
B42: 100489 | C42: Avery Falana | D42: 17 | E42: ZTLOS007 | F42: T Level Occupational Specialism - Assisting teaching | G42: 0 | H42: 31 - T Level
B43: 100489 | C43: Avery Falana | D43: 17 | E43: ZWRKX003 | F43: T Level Industry Placement | G43: 0 | H43: 31 - T Level
F45: =IF(H40="31 - T Level","The student's programme aim (ZPROG001) is correctly recorded as the T Level type (code 31).","The student's programme aim (ZPROG001) is wrongly recorded as a study programme (code 1), resulting in incorrect funding band and weighting.") -> The student's programme aim (ZPROG001) is correctly recorded as the T Level type (code 31).
B49: Example 5 - Wrong occupational specialism QN recorded
B50: Student reference | C50: Student name | D50: Age | E50: Qualification number | F50: Qualification title | G50: Core aim | H50: Programme type - aim level | I50: Programme weighting | J50: Programme type - overall programme | K50: T Level qualification hours | L50: T Level non qualification hours | M50: Total T Level hours | N50: Funding band
B51: 100489 | C51: Avery Falana | D51: 17 | E51: ZPROG001 | F51: Generic code to identify ILR programme aims | G51: 0 | H51: 31 - T Level | I51: 1.4 | J51: T Level | K51: 1450 | L51: 70 | M51: =K51+L51 -> 1520 | N51: Band 7 (T Level)
B52: 100489 | C52: Avery Falana | D52: 17 | E52: 60369115 | F52: T Level Technical Qualification in Building Services Engineering for Construction | G52: 1 | H52: 31 - T Level
B53: 100489 | C53: Avery Falana | D53: 17 | E53: ZTLOS026 | F53: T Level Occupational Specialism - Air conditioning engineering and refrigeration engineering | G53: 0 | H53: 31 - T Level
B54: 100489 | C54: Avery Falana | D54: 17 | E54: ZWRKX003 | F54: Programme start date | G54: 0 | H54: 31 - T Level
F56: =IF(E53="ZTLOS032","The student's programme aim is correctly recorded, giving the correct programme weighting and funding band.","The student's programme aim is wrongly recorded, resulting in incorrect lower weighting and funding band.") -> The student's programme aim is wrongly recorded, resulting in incorrect lower weighting and funding band.

Sheet HVCP_examples
I1: Return to HVCP
B2: High value courses premium (HVCP) (please click on red buttons to see the effects of data errors and the green buttons to reset the data back to a clean record) | I2: Return to main page
B3: Example 1 - Incorrect QN (not an HVCP qual, voc prog)
B4: Student reference | C4: Student name | D4: Qualification number (QN) | E4: Qualification title | F4: Level | G4: Guided learning hours (GLH)
B5: 100721 | C5: Mo Hassan | D5: 60002669 | E5: Diploma in Vehicle Parts Competence | F5: 3 | G5: 640
B7: =IF(E5="Diploma in Vehicle Parts Competence","The qualification is on the HVCP list and the student is eligible for the premium.","The qualification is not eligible for the premium: it is level 2 and has too few GLH.") -> The qualification is on the HVCP list and the student is eligible for the premium.
B12: Example 2 - Incorrect QN (not a substantial A level programme)
B13: Student reference | C13: Student name | D13: Qualification number (QN) | E13: Qualification title | F13: Level | G13: Guided learning hours (GLH)
B14: 100721 | C14: Mo Hassan | D14: 60149735 | E14: GCE A Level in History | F14: 3 | G14: 360
D15: 60160445 | E15: GCE A Level in Psychology | F15: 3 | G15: 360
D16: 50073333 | E16: BTEC Certificate in Art and Design (QCF) | F16: 3 | G16: 64
B18: =IF(E14="GCE A Level in History","The student's programme includes two A levels and therefore is a qualifying A level programme.","The student's programme does not include two A levels and therefore does not count as a qualifying A level programme.") -> The student's programme includes two A levels and therefore is a qualifying A level programme.

Sheet L3 maths and English examples
M1: Return to L3 maths and English payment
B2: Level 3 maths and English payment (please click on red buttons to see the effects of data errors and the green buttons to reset the data back to a clean record) | M2: Return to main page
B4: Example 1 - student is not on a substantial L3 A level programme
B5: Student reference | C5: Student name | D5: Qualification number (QN) | E5: Qualification title | F5: Core aim | G5: Level | H5: Guided learning hours (GLH) | I5: Prog start | J5: Prog end | K5: Prog length | L5: Grade 9-4 maths at the start of their L3 programme? | M5: Payment | N5: Grade 9-4 English at the start of their L3 programme? | O5: Payment | P5: Total payment
B6: 5037842 | C6: Xia Li | D6: 60149735 | E6: GCE A Level in History | F6: 1 | G6: 3 | H6: 360 | I6: 2020-09-07 | J6: =I6+600 -> 2022-04-30 | K6: 2 year | L6: No | M6: 750 | N6: Yes | O6: 0 | P6: =M6+O6 -> 750
D7: 60160445 | E7: GCE A Level in Psychology | F7: 0 | G7: 3 | H7: 360
D8: 60147003 | E8: GCSE (9-1) in Mathematics | F8: 0 | G8: 1/2 | H8: 130
E10: =IF(E6="GCE A Level in History","The student's programme includes two A levels and therefore is a substantial L3 programme.","The student's programme does not include two A levels and therefore does not count as a substantial L3 programme.") -> The student's programme includes two A levels and therefore is a substantial L3 programme.
B16: Example 2 - student is not on a substantial L3 vocational programme
B17: Student reference | C17: Student name | D17: Qualification number (QN) | E17: Qualification title | F17: Core aim | G17: Level | H17: Guided learning hours (GLH) | I17: Prog start | J17: Prog end | K17: Prog length | L17: Grade 9-4 maths at the start of their L3 programme? | M17: Payment | N17: Grade 9-4 English at the start of their L3 programme? | O17: Payment | P17: Total payment
B18: 5037842 | C18: Xia Li | D18: 6032675X | E18: BTEC National Diploma in Horticulture | F18: 1 | G18: 3 | H18: 720 | I18: 2020-09-07 | J18: 2021-07-16 | K18: 1 year | L18: No | M18: 375 | N18: Yes | O18: 0 | P18: =M18+O18 -> 375
D19: 6035267X | E19: Functional Skills Qualification in Mathematics | F19: 0 | G19: 2 | H19: 55
E21: =IF(E18="BTEC National Diploma in Horticulture","The student's programme includes a vocational qualification of more than 360 hours and therefore is a substantial L3 programme.","The student's programme does not include a vocational qualification of more than 360 hours and therefore does not count as a substantial L3 programme.") -> The student's programme includes a vocational qualification of more than 360 hours and therefore is a substantial L3 programme.
B27: Example 3 - dates recorded wrongly
B28: Student reference | C28: Student name | D28: Qualification number (QN) | E28: Qualification title | F28: Core aim | G28: Level | H28: Guided learning hours (GLH) | I28: Programme start date | J28: Programme end date | K28: Prog length | L28: Grade 9-4 maths at the start of their L3 programme? | M28: Payment | N28: Grade 9-4 English at the start of their L3 programme? | O28: Payment | P28: Total payment
B29: 5037842 | C29: Xia Li | D29: 6032675X | E29: BTEC National Diploma in Horticulture | F29: 1 | G29: 3 | H29: 720 | I29: 2020-09-07 | J29: 24/06/2022 | K29: 2 year | L29: No | M29: 750 | N29: Yes | O29: 0 | P29: =M29+O29 -> 750
D30: 6035267X | E30: Functional Skills Qualification in Mathematics | F30: 0 | G30: 2 | H30: 55
E32: =IF(K29="2 year","The student is on a 2 year programme, as it lasts more than 18 months.","The student is on a 1 year programme, as the dates indicate it is shorter than 18 months.") -> The student is on a 2 year programme, as it lasts more than 18 months.
B38: Example 4 - prior attainment recorded wrongly
B39: Student reference | C39: Student name | D39: Qualification number (QN) | E39: Qualification title | F39: Core aim | G39: Level | H39: Guided learning hours (GLH) | I39: Programme start date | J39: Programme end date | K39: Prog length | L39: Grade 9-4 maths at the start of their L3 programme? | M39: Payment | N39: Grade 9-4 English at the start of their L3 programme? | O39: Payment | P39: Total payment
B40: 5037842 | C40: Xia Li | D40: 6032675X | E40: BTEC National Diploma in Horticulture | F40: 1 | G40: 3 | H40: 720 | I40: 2020-09-07 | J40: 2022-06-24 | K40: 2 year | L40: No (grade 3 or below) | M40: 750 | N40: No (grade 3 or below) | O40: 750 | P40: =M40+O40 -> 1500
D41: 6035267X | E41: Functional Skills Qualification in Mathematics | F41: 0 | G41: 2 | H41: 55
D42: 60346541 | E42: Functional Skills English | F42: 0 | G42: 2 | H42: 55
E44: =IF(L40="No (grade 3 or below)","The student has prior attainment recorded that qualifies them for 2 instances of the L3 maths and English payment.","The student does not have prior attainment recorded that qualifies them for 2 instances of the L3 maths and English payment.") -> The student has prior attainment recorded that qualifies them for 2 instances of the L3 maths and English payment.

Sheet CoF examples
B3: Condition of funding on the provision of mathematics and English (please click on red buttons to see the effects of data errors and the green buttons to reset the data back to a clean record) | L3: Return to condition of funding
L4: Return to main sheet
B5: Example 1 - Invalid qualification number (QN)
B6: Student reference | C6: Student name | D6: Age | E6: Planned learning hours (qualification hours) | F6: Planned enrichment, employability and pastoral hours (non-qualification hours) | G6: Total planned hours | H6: Maths GCSE funding exemption | I6: English GCSE funding exemption | J6: Maths GCSE highest prior attainment | K6: English GCSE highest prior attainment
B7: 100018 | C7: Christian Graham | D7: 17 | E7: 450 | F7: 120 | G7: =SUM(E7:F7) -> 570 | H7: N | I7: N | J7: E | K7: E
B10: Student reference | C10: Student name | D10: Qualification number | E10: Qualification title | H10: Start date | I10: Planned end date | J10: Actual end date | K10: LARS CoF type | L10: Learning aim status | M10: Condition of funding - maths status | N10: Condition of funding - English status | O10: Condition of funding overall status | U10: Qualification Reference | V10: Qualification Title | Y10: LARS EFA CoF Type
B11: 100018 | C11: Christian Graham | D11: 50067254 | E11: =IF(ISERROR(MATCH(D11,U11:U15,0))=TRUE,"No match",INDEX(V11:X15,MATCH(D11,U11:U15,0),1)) -> BTEC Subsidiary Diploma in Applied Science (QCF) | H11: 2013-09-02 | I11: 2014-07-21 | J11: 2014-07-21 | K11: N/A | L11: 2 | M11: =IF(K14="GCSE","Doesn't have maths, studying maths","Doesn't have maths, not studying maths") -> Doesn't have maths, studying maths | N11: =IF(K13="GCSE","Doesn't have English, studying English","Doesn't have English, not studying English") -> Doesn't have English, studying English | O11: =IF(OR(M11="Doesn't have maths, not studying maths",N11="Doesn't have English, not studying English"),"Doesn't meet the condition of funding","Meets the condition of funding") -> Meets the condition of funding | U11: 50067254 | V11: BTEC Subsidiary Diploma in Applied Science (QCF) | Y11: N/A
B12: 100018 | C12: Christian Graham | D12: 50091475 | E12: =IF(ISERROR(MATCH(D12,U12:U16,0))=TRUE,"No match",INDEX(V12:X16,MATCH(D12,U12:U16,0),1)) -> Subsidiary Diploma in IT (QCF) | H12: 2013-09-02 | I12: 2014-07-21 | J12: 2014-07-21 | K12: N/A | L12: 2 | U12: 50091475 | V12: Subsidiary Diploma in IT (QCF) | Y12: N/A
B13: 100018 | C13: Christian Graham | D13: 60131597 | E13: =IF(ISERROR(MATCH(D13,U13:U17,0))=TRUE,"No match",INDEX(V13:X17,MATCH(D13,U13:U17,0),1)) -> GCSE in English | H13: 2013-09-02 | I13: 2014-07-21 | J13: 2014-07-21 | K13: =IF(ISERROR(MATCH(D13,U13:U17,0))=TRUE,"No match","GCSE") -> GCSE | L13: 2 | U13: 60131597 | V13: GCSE in English | Y13: GCSE
B14: 100018 | C14: Christian Graham | D14: 50078562 | E14: =IF(ISERROR(MATCH(D14,U14:U18,0))=TRUE,"No match",INDEX(V14:X18,MATCH(D14,U14:U18,0),1)) -> GCSE in Mathematics | H14: 2013-09-02 | I14: 2014-07-21 | J14: 2014-07-21 | K14: =IF(ISERROR(MATCH(D14,U14:U18,0))=TRUE,"No match","GCSE") -> GCSE | L14: 2 | U14: 50078562 | V14: GCSE in Mathematics | Y14: GCSE
B15: 100018 | C15: Christian Graham | D15: 50067503 | E15: =IF(ISERROR(MATCH(D15,U15:U19,0))=TRUE,"No match",INDEX(V15:X19,MATCH(D15,U15:U19,0),1)) -> BTEC Subsidiary Diploma in Business (QCF) | H15: 2013-09-02 | I15: 2014-07-21 | J15: 2014-07-21 | K15: N/A | L15: 2 | U15: 50067503 | V15: BTEC Subsidiary Diploma in Business (QCF) | Y15: N/A
F18: =IF(O11="Doesn't meet the condition of funding","The student holds grade E in both maths and English GCSE but invalid QNs mean that it is impossible to tell if the student is undertaking approved maths and English qualifications. Therefore the student does not meet the condition of funding.","The student complies with the condition of funding.") -> The student complies with the condition of funding.
B28: Example 2 - Missing prior attainment grades
B29: Student reference | C29: Student name | D29: Age | E29: Planned learning hours (qualification hours) | F29: Planned enrichment, employability and pastoral hours (non-qualification hours) | G29: Total planned hours | H29: Maths GCSE funding exemption | I29: English GCSE funding exemption | J29: Maths GCSE highest prior attainment | K29: English GCSE highest prior attainment
B30: 100018 | C30: Christian Graham | D30: 17 | E30: 450 | F30: 120 | G30: =SUM(E30:F30) -> 570 | H30: N | I30: N | J30: B | K30: A
B33: Student reference | C33: Student name | D33: Qualification number | E33: Qualification title | H33: Start date | I33: Planned end date | J33: Actual end date | K33: LARS EFA CoF type | L33: Learning aim status | M33: Condition of funding - maths status | N33: Condition of funding - English status | O33: Condition of funding overall status
B34: 100018 | C34: Christian Graham | D34: 50067254 | E34: BTEC Subsidiary Diploma in Applied Science (QCF) | H34: 2013-09-02 | I34: 2014-07-21 | J34: 2014-07-21 | K34: N/A | L34: 2 | M34: =IF(J30="B","Has maths, not studying maths","Doesn't have maths, not studying maths") -> Has maths, not studying maths | N34: =IF(K30="A","Has English, not studying English","Doesn't have English, not studying English") -> Has English, not studying English | O34: =IF(OR(M34="Doesn't have maths, not studying maths",N34="Doesn't have English, not studying English"),"Doesn't meet the condition of funding","Meets the condition of funding") -> Meets the condition of funding
B35: 100018 | C35: Christian Graham | D35: 50091475 | E35: Subsidiary Diploma in IT (QCF) | H35: 2013-09-02 | I35: 2014-07-21 | J35: 2014-07-21 | K35: N/A | L35: 2
B36: 100018 | C36: Christian Graham | D36: 50067503 | E36: BTEC Subsidiary Diploma in Business (QCF) | H36: 2013-09-02 | I36: 2014-07-21 | J36: 2014-07-21 | K36: N/A | L36: 2
F39: =IF(O34="Doesn't meet the condition of funding","The student holds GCSE maths and English at grade C or above however, the prior attainment does not reflect this. As the student is also not recorded as undertaking either subject, they do not meet the condition of funding.","The student complies with the condition of funding.") -> The student complies with the condition of funding.
B51: Example 3 - Incorrect exemption data
B52: Student reference | C52: Student name | D52: Age | E52: Planned learning hours (qualification hours) | F52: Planned enrichment, employability and pastoral hours (non-qualification hours) | G52: Total planned hours | H52: Maths GCSE funding exemption | I52: English GCSE funding exemption | J52: Maths GCSE highest prior attainment | K52: English GCSE highest prior attainment
B53: 100018 | C53: Christian Graham | D53: 17 | E53: 450 | F53: 120 | G53: =SUM(E53:F53) -> 570 | H53: U | I53: N | J53: NR | K53: A
B56: Student reference | C56: Student name | D56: Qualification number | E56: Qualification title | H56: Start date | I56: Planned end date | J56: Actual end date | K56: LARS EFA CoF type | L56: Learning aim status | M56: Condition of funding - maths status | N56: Condition of funding - English status | O56: Condition of funding overall status
B57: 100018 | C57: Christian Graham | D57: 50067254 | E57: BTEC Subsidiary Diploma in Applied Science (QCF) | H57: 2013-09-02 | I57: 2014-07-21 | J57: 2014-07-21 | K57: N/A | L57: 2 | M57: =IF(H53="U","Has maths, Not studying maths","Doesn't have maths, not studying maths") -> Has maths, Not studying maths | N57: =IF(K53="A","Has English, not studying English","Doesn't have English, not studying English") -> Has English, not studying English | O57: =IF(OR(M57="Doesn't have maths, not studying maths",N57="Doesn't have English, not studying English"),"Doesn't meet the condition of funding","Meets the condition of funding") -> Meets the condition of funding
B58: 100018 | C58: Christian Graham | D58: 50091475 | E58: Subsidiary Diploma in IT (QCF) | H58: 2013-09-02 | I58: 2014-07-21 | J58: 2014-07-21 | K58: N/A | L58: 2
B59: 100018 | C59: Christian Graham | D59: 50067503 | E59: BTEC Subsidiary Diploma in Business (QCF) | H59: 2013-09-02 | I59: 2014-07-21 | J59: 2014-07-21 | K59: N/A | L59: 2
F61: =IF(H53="N","This student holds a UK maths qualification equivalent to GCSE grade C or above but the exemption code does not reflect this, hence the student does not comply.","The student complies with the condition of funding.") -> The student complies with the condition of funding.
B73: Example 4 - Incorrect learning aim dates
B74: Student reference | C74: Student name | D74: Age | E74: Planned learning hours (qualification hours) | F74: Planned enrichment, employability and pastoral hours (non-qualification hours) | G74: Total planned hours | H74: Maths GCSE funding exemption | I74: English GCSE funding exemption | J74: Maths GCSE highest prior attainment | K74: English GCSE highest prior attainment
B75: 100018 | C75: Christian Graham | D75: 17 | E75: 450 | F75: 120 | G75: =SUM(E75:F75) -> 570 | H75: N | I75: N | J75: E | K75: E
B78: Student reference | C78: Student name | D78: Qualification number | E78: Qualification title | H78: Start date | I78: Planned end date | J78: Actual end date | K78: Planned length (days) | L78: CoF qualifying period | M78: Actual length (days) | N78: Aim qualifies for CoF | O78: Learning aim status | P78: Condition of funding - maths status | Q78: Condition of funding - English status | R78: Condition of funding overall status | U78: Qualification Reference | V78: Qualification Title | Y78: LARS EFA CoF Type
B79: 100018 | C79: Christian Graham | D79: 50067254 | E79: =IF(ISERROR(MATCH(D79,U79:U83,0))=TRUE,"No Match",INDEX(V79:X83,MATCH(D79,U79:U83,0),1)) -> BTEC Subsidiary Diploma in Applied Science (QCF) | H79: 2013-09-02 | I79: 2014-07-21 | J79: 2014-07-21 | O79: 2 | P79: =IF(N82="Y","Doesn't have maths, studying maths","Doesn't have maths, not studying maths") -> Doesn't have maths, studying maths | Q79: =IF(N81="Y","Doesn't have English, studying English","Doesn't have English, not studying English") -> Doesn't have English, studying English | R79: =IF(OR(P79="Doesn't have maths, not studying maths",Q79="Doesn't have English, not studying English"),"Doesn't meet the condition of funding","Meets the condition of funding") -> Meets the condition of funding | U79: 50067254 | V79: BTEC Subsidiary Diploma in Applied Science (QCF) | Y79: N/A
B80: 100018 | C80: Christian Graham | D80: 50091475 | E80: =IF(ISERROR(MATCH(D80,U80:U84,0))=TRUE,"No Match",INDEX(V80:X84,MATCH(D80,U80:U84,0),1)) -> Subsidiary Diploma in IT (QCF) | H80: 2013-09-02 | I80: 2014-07-21 | J80: 2014-07-21 | O80: 2 | U80: 50091475 | V80: Subsidiary Diploma in IT (QCF) | Y80: N/A
B81: 100018 | C81: Christian Graham | D81: 60131597 | E81: GCSE in English | H81: 2013-09-02 | I81: 2014-07-21 | J81: 2014-09-20 | K81: =I81-H81 -> 322 | L81: =IF(K81<14,0,IF(K81>=168,42,14)) -> 42 | M81: =J81-H81 -> 383 | N81: =IF(L81=0,"N",IF(M81>=L81,"Y","N")) -> Y | O81: 2 | U81: 60131597 | V81: GCSE in English | Y81: GCSE
B82: 100018 | C82: Christian Graham | D82: 50078562 | E82: GCSE in Mathematics | H82: 2013-09-02 | I82: 2014-07-21 | J82: 2014-07-21 | K82: 322 | L82: =IF(K82<14,0,IF(K82>=168,42,14)) -> 42 | M82: =J82-H82 -> 322 | N82: =IF(L82=0,"N",IF(M82>=L82,"Y","N")) -> Y | O82: 2 | U82: 50078562 | V82: GCSE in Mathematics | Y82: GCSE
B83: 100018 | C83: Christian Graham | D83: 50067503 | E83: BTEC Subsidiary Diploma in Business (QCF) | H83: 2013-09-02 | I83: 2014-07-21 | J83: 2014-07-21 | O83: 2 | U83: 50067503 | V83: BTEC Subsidiary Diploma in Business (QCF) | Y83: N/A
G85: =IF(OR(N81="N",N82="N"),"The student has not studied their maths and English aims for the minimum qualifying period, hence they do not count towards the condition of funding and the student does not comply.","The student complies with the condition of funding.") -> The student complies with the condition of funding.
B97: Example 5 - Non-approved maths and English aims and incorrect start dates
B98: Student reference | C98: Student name | D98: Age | E98: Planned learning hours (qualification hours) | F98: Planned enrichment, employability and pastoral hours (non-qualification hours) | G98: Total planned hours | H98: Maths GCSE funding exemption | I98: English GCSE funding exemption | J98: Maths GCSE highest prior attainment | K98: English GCSE highest prior attainment
B99: 100018 | C99: Christian Graham | D99: 17 | E99: 450 | F99: 120 | G99: =SUM(E99:F99) -> 570 | H99: N | I99: N | J99: E | K99: E
B102: Student reference | C102: Student name | D102: Qualification number | E102: Qualification title | H102: Start date | I102: Planned end date | J102: Actual end date | K102: Has CoF validity on LARS | L102: CoF validity start date | M102: CoF validity last date for new starts | N102: Start date in valid range | O102: Learning aim status | P102: Condition of funding - maths status | Q102: Condition of funding - English status | R102: Condition of funding overall status
B103: 100018 | C103: Christian Graham | D103: 50067254 | E103: BTEC Subsidiary Diploma in Applied Science (QCF) | H103: 2013-09-02 | I103: 2014-07-21 | J103: 2014-07-21 | O103: 2 | P103: =IF(N106="Y","Doesn't have maths, Studying maths","Doesn't have maths, not studying maths") -> Doesn't have maths, Studying maths | Q103: =IF(N105="Y","Doesn't have English, Studying English","Doesn't have English, not studying English") -> Doesn't have English, Studying English | R103: =IF(OR(P103="Doesn't have maths, not studying maths",Q103="Doesn't have English, not studying English"),"Doesn't meet the condition of funding","Meets the condition of funding") -> Meets the condition of funding
B104: 100018 | C104: Christian Graham | D104: 50091475 | E104: Subsidiary Diploma in IT (QCF) | H104: 2013-09-02 | I104: 2014-07-21 | J104: 2014-07-21 | O104: 2 | U104: aim ref | V104: title | W104: valid | X104: LDNS | Y104: Effective from
B105: 100018 | C105: Christian Graham | D105: 60013588 | E105: =INDEX(V105:V106,MATCH(D105,$U$105:$U$106,0),1) -> Certificate in English Language | H105: 2013-09-02 | I105: 2014-07-21 | J105: 2014-09-20 | K105: =INDEX(W105:W106,MATCH(D105,$U$105:$U$106,0),1) -> Y | L105: =INDEX(X105:Y106,MATCH(D105,$U$105:$U$106,0),2) -> 2011-09-01 | M105: =INDEX(X105:Y106,MATCH(D105,$U$105:$U$106,0),1) -> 2016-08-31 | N105: =IF(AND(H105>=L105,H105<=M105),"Y","N") -> Y | O105: 2 | U105: 60110326 | V105: Certificate in English Skills (QCF) | W105: N | X105: No validity | Y105: No validity
B106: 100018 | C106: Christian Graham | D106: 60101738 | E106: Functional Skills Qualification in Mathematics at Level 2 | H106: 2013-09-02 | I106: 2014-07-21 | J106: 2014-07-21 | K106: Y | L106: 2013-08-01 | M106: 2018-05-31 | N106: =IF(AND(H106>=L106,H106<=M106),"Y","N") -> Y | O106: 2 | U106: 60013588 | V106: Certificate in English Language | W106: Y | X106: 2016-08-31 | Y106: 2011-09-01
B107: 100018 | C107: Christian Graham | D107: 50067503 | E107: BTEC Subsidiary Diploma in Business (QCF) | H107: 2013-09-02 | I107: 2014-07-21 | J107: 2014-07-21 | O107: 2
G109: =IF(K105="N","The qualification recorded is not recognised as counting toward the condition of funding. As the student does not hold a suitable, approved English qualification they do not meet the condition of funding.","The student is enrolled on a qualification that meets the condition of funding for English.") -> The student is enrolled on a qualification that meets the condition of funding for English.
G114: =IF(N106="N","The start date of this maths qualification is before the valid start date, therefore it does not count toward the condition of funding. As the student does not hold a suitable, approved maths qualification they do not meet the condition of funding.","The student is enrolled on a qualification that meets the condition of funding for maths.") -> The student is enrolled on a qualification that meets the condition of funding for maths.
B126: Example 6 - GCSE grades 2/E or below and no pass in Functional Skills Level 2
B127: Student reference | C127: Student name | D127: Age | E127: Planned learning hours (qualification hours) | F127: Planned enrichment, employability and pastoral hours (non-qualification hours) | G127: Total planned hours | H127: Maths GCSE funding exemption | I127: English GCSE funding exemption | J127: Maths GCSE highest prior attainment | K127: English GCSE highest prior attainment | L127: Maths Functional Skill Level 2 | M127: English Functional Skill Level 2 | N127: Condition of funding overall status
B128: 100018 | C128: Christian Graham | D128: 17 | E128: 450 | F128: 120 | G128: =SUM(E128:F128) -> 570 | H128: N | I128: N | J128: 2 | K128: E | L128: P | M128: P | N128: =IF(OR(L128=" ",M128=" "),"Doesn't meet the condition of funding","Meets the condition of funding") -> Meets the condition of funding
U129: P | V129: P
G130: =IF(L128=" ","The student holds grade 2/E in both maths and English GCSE but does not hold Functional Skills Level 2 pass grades in maths and English qualifications. Therefore the student does not meet the condition of funding.","The student complies with the condition of funding.") -> The student complies with the condition of funding.
B142: Example 6 - D grade student not undertaking GCSEs
B143: Student reference | C143: Student name | D143: Age | E143: Planned learning hours (qualification hours) | F143: Planned enrichment, employability and pastoral hours (non-qualification hours) | G143: Total planned hours | H143: Maths GCSE funding exemption | I143: English GCSE funding exemption | J143: Maths GCSE highest prior attainment | K143: English GCSE highest prior attainment
B144: 100018 | C144: Christian Graham | D144: 17 | E144: 450 | F144: 120 | G144: =SUM(E144:F144) -> 570 | H144: N | I144: N | J144: D | K144: D
B147: Student reference | C147: Student name | D147: Qualification number | E147: Qualification title | H147: Start date | I147: Planned end date | J147: Actual end date | K147: Learning aim status | L147: LARS EFA CoF type | M147: Condition of funding - maths status | N147: Condition of funding - English status | O147: Condition of funding overall status
B148: 100018 | C148: Christian Graham | D148: 50067254 | E148: BTEC Subsidiary Diploma in Applied Science (QCF) | H148: 2015-09-02 | I148: 2016-07-21 | J148: 2016-07-21 | K148: 2 | L148: N/A | M148: =IF(L151="GCSE","Doesn't have maths, studying maths","Doesn't have maths, not studying maths") -> Doesn't have maths, studying maths | N148: =IF(L150="GCSE","Doesn't have English, studying English","Doesn't have English, not studying English") -> Doesn't have English, studying English | O148: =IF(OR(M148="Doesn't have maths, not studying maths",N148="Doesn't have English, not studying English"),"Doesn't meet the condition of funding","Meets the condition of funding") -> Meets the condition of funding
B149: 100018 | C149: Christian Graham | D149: 50091475 | E149: Subsidiary Diploma in IT (QCF) | H149: 2015-09-02 | I149: 2016-07-21 | J149: 2016-07-21 | K149: 2 | L149: N/A
B150: 100018 | C150: Christian Graham | D150: 60131597 | E150: =INDEX($V$150:$X$153,MATCH(D150,$U$150:$U$153,0),1) -> GCSE in English | H150: 2015-09-02 | I150: 2016-07-21 | J150: 2016-09-20 | K150: 2 | L150: =INDEX($Y$150:$Y$153,MATCH(D150,$U$150:$U$153,0),1) -> GCSE | U150: 60013588 | V150: Certificate in English Language | Y150: Stepping stone
B151: 100018 | C151: Christian Graham | D151: 50078562 | E151: =INDEX($V$150:$X$153,MATCH(D151,$U$150:$U$153,0),1) -> GCSE in Mathematics | H151: 2015-09-02 | I151: 2016-07-21 | J151: 2016-07-21 | K151: 2 | L151: =INDEX($Y$150:$Y$153,MATCH(D151,$U$150:$U$153,0),1) -> GCSE | U151: 60101738 | V151: Functional Skills Qualification in Mathematics at Level 2 | Y151: Stepping stone
B152: 100018 | C152: Christian Graham | D152: 50067503 | E152: BTEC Subsidiary Diploma in Business (QCF) | H152: 2015-09-02 | I152: 2016-07-21 | J152: 2016-07-21 | K152: 2 | L152: N/A | U152: 60131597 | V152: GCSE in English | Y152: GCSE
U153: 50078562 | V153: GCSE in Mathematics | Y153: GCSE
G154: =IF(OR(L150="stepping stone",L151="stepping stone"),"The student holds grade D for maths and English and is not undertaking GCSE or equivalent qualifications. Therefore, the student does not meet the condition of funding.","The student complies with the condition of funding.") -> The student complies with the condition of funding.

Sheet LPU_examples
P1: Return to large programme uplift
B2: Large programme uplift (LPU) (please click on red buttons to see the effects of data errors and the green button to reset the data back to a clean record) | P2: Return to main sheet
B3: Example 1 - Invalid grade mix
B4: Student reference | C4: Student name | D4: Age | E4: Qualification number | F4: Qualification title | G4: LARS aim type | H4: SSA Tier 2 | I4: Start Date | J4: Planned End Date | K4: Actual End Date | L4: Learning Aim Status | M4: Core Aim | N4: Qualification Category | O4: Grade | P4: LPU status | T4: LearnAimRef | U4: LearnAimRefTitle | V4: LearnAimRefTypeDesc | W4: SSA Tier 2 | X4: Valid/Invalid for LPU
B5: 100018 | C5: Christian Graham | D5: 17 | E5: 50024759 | F5: GCE A Level in Biology | G5: GCE A level | H5: 02.1 | I5: 2013-09-02 | J5: 2014-07-21 | K5: 2014-07-21 | L5: 2 | M5: 0 | N5: =IF(G5="GCE A-Level","Academic",IF(G5="GCSE","Academic","Vocational")) -> Vocational | O5: A | P5: =IF(AND(OR(O5="A",O5="B"),OR(O6="A",O6="B"),OR(O7="A",O7="B"),OR(O8="A",O8="B")),"10% uplift","No uplift") -> 10% uplift | T5: 50024759 | U5: GCE A Level in Biology | V5: GCE A level | W5: 02.1 | X5: Valid Qual for LPU
B6: 100018 | C6: Christian Graham | D6: 17 | E6: 50024267 | F6: GCE A Level in Chemistry | G6: GCE A level | H6: 12.2 | I6: 2013-09-02 | J6: 2014-07-21 | K6: 2014-07-21 | L6: 2 | M6: 0 | O6: B | T6: 50024267 | U6: GCE A Level in Chemistry | V6: GCE A level | W6: 02.1 | X6: Valid Qual for LPU
B7: 100018 | C7: Christian Graham | D7: 17 | E7: 5002596X | F7: GCE A Level in Classics | G7: GCE A level | H7: 02.1 | I7: 2013-09-02 | J7: 2014-07-21 | K7: 2014-01-13 | L7: 2 | M7: 0 | O7: A | T7: 5002596X | U7: GCE A Level in Classics | V7: GCE A level | W7: 12.2 | X7: Valid Qual for LPU
B8: 100018 | C8: Christian Graham | D8: 17 | E8: 60147477 | F8: GCE A Level in Physics | G8: GCE A level | I8: 2013-09-02 | J8: 2014-07-21 | K8: 2014-07-21 | L8: 2 | M8: 0 | O8: A | T8: 60147477 | U8: GCE A Level in Physics | V8: GCE A level | W8: 02.1 | X8: Valid Qual for LPU
G10: =IF(P5="No Uplift","The student does not have 4 A levels at grades A*, A or B. Therefore the student is not eligible for the large programme uplift.","The student has 4 A levels at grades A*, A or B and is therefore valid for the large programme uplift.") -> The student has 4 A levels at grades A*, A or B and is therefore valid for the large programme uplift. | T10: A
T12: A level Grade
T13: 5002596X | U13: GCE A Level in Classics | V13: GCE A level
T14: C
H15: 02.1
B16: Example 2 - Invalid qualification mix | H16: 02.1
B17: Student reference | C17: Student name | D17: Age | E17: Qualification number | F17: Qualification title | G17: LARS aim type | H17: SSA Tier 2 | I17: Start Date | J17: Planned End Date | K17: Actual End Date | L17: Learning Aim Status | M17: Core Aim | N17: Qualification Category | O17: Grade | P17: LPU status
B18: 100018 | C18: Christian Graham | D18: 17 | E18: 50024759 | F18: GCE A Level in Biology | G18: GCE A level | H18: 15.3 | I18: 2013-09-02 | J18: 2014-07-21 | K18: 2014-07-21 | L18: 2 | M18: 0 | N18: =IF(G18="GCE A-Level","Academic",IF(G18="GCSE","Academic","Vocational")) -> Vocational | O18: A | P18: =IF(G20="Diploma","No uplift","10% uplift") -> 10% uplift
B19: 100018 | C19: Christian Graham | D19: 17 | E19: 50024267 | F19: GCE A Level in Chemistry | G19: GCE A level | I19: 2013-09-02 | J19: 2014-07-21 | K19: 2014-07-21 | L19: 2 | M19: 0 | O19: A
B20: 100018 | C20: Christian Graham | D20: 17 | E20: 5002596X | F20: GCE A Level in Classics | G20: GCE A level | H20: Diploma | I20: 2013-09-02 | J20: 2014-07-21 | K20: 2014-01-13 | L20: 2 | M20: 0 | O20: A | T20: 50067503 | U20: BTEC Subsidiary Diploma in Business (QCF) | V20: Diploma | W20: 15.3 | X20: Invalid Qual for LPU
B21: 100018 | C21: Christian Graham | D21: 17 | E21: 60147477 | F21: GCE A Level in Physics | G21: GCE A level | H21: 02.1 | I21: 2013-09-02 | J21: 2014-07-21 | K21: 2014-07-21 | L21: 2 | M21: 0 | O21: A | T21: P
G23: =IF(P18="No Uplift","The student has an invalid mix of vocational and academic qualifications and so is not eligible for the large programme uplift.","The student has 4 A level qualifications and is therefore valid for the large programme uplift.") -> The student has 4 A level qualifications and is therefore valid for the large programme uplift.
B29: Example 3 - Ineligible A level qualification | H29: 02.1
B30: Student reference | C30: Student name | D30: Age | E30: Qualification number | F30: Qualification title | G30: LARS aim type | H30: SSA Tier 2 | I30: Start Date | J30: Planned End Date | K30: Actual End Date | L30: Learning Aim Status | M30: Core Aim | N30: Qualification Category | O30: Grade | P30: LPU status
B31: 100018 | C31: Christian Graham | D31: 17 | E31: 50024759 | F31: GCE A Level in Biology | G31: GCE A level | H31: 02.1 | I31: 2013-09-02 | J31: 2014-07-21 | K31: 2014-07-21 | L31: 2 | M31: 0 | N31: =IF(G31="GCE A-Level","Academic",IF(G31="GCSE","Academic","Vocational")) -> Vocational | O31: A | P31: =IF(F31="GCE A Level in General Studies","No uplift","10% uplift") -> 10% uplift | T31: 50021941 | U31: GCE A Level in General Studies | V31: GCE A-Level | W31: 14.1 | X31: Invalid Qual for LPU
B32: 100018 | C32: Christian Graham | D32: 17 | E32: 50024267 | F32: GCE A Level in Chemistry | G32: GCE A level | I32: 2013-09-02 | J32: 2014-07-21 | K32: 2014-07-21 | L32: 2 | M32: 0 | O32: B
B33: 100018 | C33: Christian Graham | D33: 17 | E33: 5002596X | F33: GCE A Level in Classics | G33: GCE A level | H33: 12.2 | I33: 2013-09-02 | J33: 2014-07-21 | K33: 2014-01-13 | L33: 2 | M33: 0 | O33: B
B34: 100018 | C34: Christian Graham | D34: 17 | E34: 50024759 | F34: GCE A Level in Biology | G34: GCE A level | H34: 02.1 | I34: 2013-09-02 | J34: 2014-07-21 | K34: 2014-07-21 | L34: 2 | M34: 0 | O34: A
G36: =IF(P31="No Uplift","The student only has 3 valid A level qualifications as general studies does not count. Therefore the student is not eligible for the large programme uplift.","The student has 4 valid A level qualifications and is therefore valid for the large programme uplift.") -> The student has 4 valid A level qualifications and is therefore valid for the large programme uplift.
B42: Example 4 - Missing Tech Bacc project qualification
B43: Student reference | C43: Student name | D43: Age | E43: Qualification number | F43: Qualification title | G43: LARS aim type | H43: SSA Tier 2 | I43: Start Date | J43: Planned End Date | K43: Actual End Date | L43: Learning Aim Status | M43: Core Aim | N43: Qualification Category | O43: Grade | P43: LPU status | T43: LearnAimRef | U43: LearnAimRefTitle | V43: LearnAimRefTypeDesc | W43: SSA Tier 2 | X43: Valid/Invalid for LPU
B44: 100018 | C44: Christian Graham | D44: 17 | E44: 50081652 | F44: Extended Diploma in Engineering (QCF) | G44: TechBacc | I44: 2013-09-02 | J44: 2014-07-21 | K44: 2014-07-21 | L44: 2 | M44: 1 | N44: =IF(G44="GCE A-Level","Academic",IF(G44="GCSE","Academic","Vocational")) -> Vocational | O44: =IF(F46="Extended Project","20% uplift","No uplift") -> 20% uplift | P44: =IF(F46="Extended Project","20% uplift","No uplift") -> 20% uplift | T44: 50081652 | U44: Extended Diploma in Engineering (QCF) | V44: TechBacc | W44: 04.1 | X44: Valid Qual for LPU
B45: 100018 | C45: Christian Graham | D45: 17 | E45: 10034080 | F45: GCE A Level in Mathematics | G45: GCE A-Level | I45: 2013-09-02 | J45: 2014-07-21 | K45: 2014-07-21 | L45: 2 | M45: 0 | T45: 10034080 | U45: GCE A Level in Mathematics | V45: GCE A-Level | W45: 02.2 | X45: Valid Qual for LPU
B46: 100018 | C46: Christian Graham | D46: 17 | E46: 5002372X | F46: Extended Project | G46: TechBacc | I46: 2013-09-02 | J46: 2014-07-21 | K46: 2014-01-13 | L46: 2 | M46: 0 | T46: 5002372X | U46: Extended Project | V46: TechBacc | W46: 14.1 | X46: Valid Qual for LPU
U47: Extended Project omitted
G48: =IF(O44="No Uplift","The student does not have the extended project. Therefore the student is not eligible for the large programme uplift.","The student has all the elements of the TechBacc and is therefore valid for the large programme uplift.") -> The student has all the elements of the TechBacc and is therefore valid for the large programme uplift.
B54: Example 5 - Missing International Baccalaureate Diploma
B55: Student reference | C55: Student name | D55: Age | E55: Qualification number | F55: Qualification title | G55: LARS aim type | H55: SSA Tier 2 | I55: Start Date | J55: Planned End Date | K55: Actual End Date | L55: Learning Aim Status | M55: Core Aim | N55: Qualification Category | O55: Grade | P55: LPU status | T55: LearnAimRef | U55: LearnAimRefTitle | V55: LearnAimRefTypeDesc | W55: SSA Tier 2 | X55: Valid/Invalid for LPU
B56: 100018 | C56: Christian Graham | D56: 17 | E56: 50034157 | F56: International Baccalaureate Diploma | G56: International Baccalaureate | H56: 14.1 | I56: Valid Qual for LPU | N56: Academic | O56: 28 | P56: =IF(F56="International Baccalaureate Diploma","20% uplift","No uplift") -> 20% uplift | T56: 50034157 | U56: International Baccalaureate Diploma | V56: International Baccalaureate | W56: 14.1 | X56: Valid Qual for LPU
B57: 100018 | C57: Christian Graham | D57: 17 | E57: 60131779 | F57: IBO Level 3 Certificate in HL Chemistry | G57: International Baccalaureate | H57: 14.1 | I57: 2013-09-02 | J57: 2014-07-21 | K57: 2014-07-21 | L57: 2 | M57: 0 | T57: 60131779 | U57: IBO Level 3 Certificate in HL Chemistry | V57: International Baccalaureate | W57: 14.1 | X57: Valid Qual for LPU | Y57: 2013-09-02 | Z57: 2014-07-21 | AA57: 2014-07-21 | AB57: 2 | AC57: 0
B58: 100018 | C58: Christian Graham | D58: 17 | E58: 60131743 | F58: IBO Level 3 Certificate in HL Biology | G58: International Baccalaureate | H58: 14.1 | I58: 2013-09-02 | J58: 2014-07-21 | K58: 2014-01-13 | L58: 2 | M58: 0 | T58: 60131743 | U58: IBO Level 3 Certificate in HL Biology | V58: International Baccalaureate | W58: 14.1 | X58: Valid Qual for LPU
B59: 100018 | C59: Christian Graham | D59: 17 | E59: 60131809 | F59: IBO Level 3 Certificate in HL Physics | G59: International Baccalaureate | H59: 14.1 | I59: 2013-09-02 | J59: 2014-07-21 | K59: 2014-07-21 | L59: 2 | M59: 0 | T59: 60131809 | U59: IBO Level 3 Certificate in HL Physics | V59: International Baccalaureate | W59: 14.1 | X59: Valid Qual for LPU
G61: =IF(P56="No Uplift","The student does not have the International Baccalaureate Diploma. Therefore the student is not eligible for the large programme uplift.","The student has all the elements of the International Baccalaureate Diploma and is therefore valid for the large programme uplift.") -> The student has all the elements of the International Baccalaureate Diploma and is therefore valid for the large programme uplift. | U61: IB Diploma omitted
T63: 50034157 | U63: IB Diploma less than 28 points
T65: 28 | U65: 26
B67: Example 6 - International Baccalaureate Diploma less than 28 points
B68: Student reference | C68: Student name | D68: Age | E68: Qualification number | F68: Qualification title | G68: LARS aim type | H68: SSA Tier 2 | I68: Start Date | J68: Planned End Date | K68: Actual End Date | L68: Learning Aim Status | M68: Core Aim | N68: Qualification Category | O68: Grade | P68: LPU status
B69: 100018 | C69: Christian Graham | D69: 17 | E69: 50034157 | F69: International Baccalaureate Diploma | G69: International Baccalaureate | H69: 14.1 | I69: 2013-09-02 | J69: 2014-07-21 | K69: 2014-07-21 | L69: 2 | M69: 0 | N69: Academic | O69: 28 | P69: =IF(O69=28,"20% uplift","No uplift") -> 20% uplift
B70: 100018 | C70: Christian Graham | D70: 17 | E70: 60131779 | F70: IBO Level 3 Certificate in HL Chemistry | G70: International Baccalaureate | H70: 14.1 | I70: 2013-09-02 | J70: 2014-07-21 | K70: 2014-07-21 | L70: 2 | M70: 0
B71: 100018 | C71: Christian Graham | D71: 17 | E71: 60131743 | F71: IBO Level 3 Certificate in HL Biology | G71: International Baccalaureate | H71: 14.1 | I71: 2013-09-02 | J71: 2014-07-21 | K71: 2014-01-13 | L71: 2 | M71: 0
B72: 100018 | C72: Christian Graham | D72: 17 | E72: 60131809 | F72: IBO Level 3 Certificate in HL Physics | G72: International Baccalaureate | H72: 14.1 | I72: 2013-09-02 | J72: 2014-07-21 | K72: 2014-07-21 | L72: 2 | M72: 0
G74: =IF(P69="No Uplift","The student has less than the required 28 points for the International Baccalaureate Diploma to count. Therefore the student is not eligible for the large programme uplift.","The student has the required 28 points for the International Baccalaureate Diploma and is therefore valid for the large programme uplift.") -> The student has the required 28 points for the International Baccalaureate Diploma and is therefore valid for the large programme uplift.
N79: See the effect of invalid QAN on LPU
B80: Example 7 - Invalid Advanced Mathematics grade
B81: Student reference | C81: Student name | D81: Age | E81: Qualification number | F81: Qualification title | G81: LARS aim type | H81: SSA Tier 2 | I81: Start Date | J81: Planned End Date | K81: Actual End Date | L81: Learning Aim Status | M81: Core Aim | N81: Qualification Category | O81: Grade | P81: LPU status
B82: 100018 | C82: Christian Graham | D82: 17 | E82: 50024759 | F82: GCE A Level in Biology | G82: GCE A level | H82: 02.1 | I82: 2013-09-02 | J82: 2014-07-21 | K82: 2014-07-21 | L82: 2 | M82: 0 | N82: =IF(G82="GCE A-Level","Academic",IF(G82="GCSE","Academic","Vocational")) -> Vocational | O82: B | P82: =IF(AND(OR(O82="A",O82="B"),OR(O83="A",O83="B"),OR(O84="C",O84="B"),OR(O85="A",O85="B")),"10% uplift","No uplift") -> 10% uplift
B83: 100018 | C83: Christian Graham | D83: 17 | E83: 50024267 | F83: GCE A Level in Chemistry | G83: GCE A level | H83: 12.2 | I83: 2013-09-02 | J83: 2014-07-21 | K83: 2014-07-21 | L83: 2 | M83: 0 | O83: B | T83: R6020556 | U83: Advanced Mathematics | V83: GCE A level
B84: 100018 | C84: Christian Graham | D84: 17 | E84: R6020556 | F84: Advanced Mathematics | G84: GCE A level | H84: 02.1 | I84: 2013-09-02 | J84: 2014-07-21 | K84: 2014-01-13 | L84: 2 | M84: 0 | O84: C | T84: C | V84: D
B85: 100018 | C85: Christian Graham | D85: 17 | E85: 60147477 | F85: GCE A Level in Physics | G85: GCE A level | I85: 2013-09-02 | J85: 2014-07-21 | K85: 2014-07-21 | L85: 2 | M85: 0 | O85: B
T86: LearnAimRef | U86: LearnAimRefTitle | V86: LearnAimRefTypeDesc | W86: SSA Tier 2 | X86: Valid/Invalid for LPU
G87: =IF(P82="No Uplift","The student does not have Advanced Mathematics at grade C and 3 A levels at grade B. Therefore the student is not eligible for the large programme uplift.","The student has Advanced Mathematics at grade C and 3 A levels at grade B and is therefore valid for the large programme uplift.") -> The student has Advanced Mathematics at grade C and 3 A levels at grade B and is therefore valid for the large programme uplift. | T87: 50024759 | U87: GCE A Level in Biology | V87: GCE A level | W87: 02.1 | X87: Valid Qual for LPU
T88: 50024267 | U88: GCE A Level in Chemistry | V88: GCE A level | W88: 02.1 | X88: Valid Qual for LPU
T89: R6020556 | U89: Advanced Mathematics | V89: GCE A level | W89: 12.2 | X89: Valid Qual for LPU
T90: 60147477 | U90: GCE A Level in Physics | V90: GCE A level | W90: 02.1 | X90: Valid Qual for LPU
